Workbook

Sheet Purchase(1)
C4: رقم التسجيل الضريبي
C6: العنوان
A8: عدد فواتير المشتريات | B8: =COUNT($A$11:$A$500) -> 1 | D8: تحليل مشتريات | F8: فيراير
A10: التاريخ | B10: رقم الفاتورة | C10: المورد | D10: الرقم الضريبي | E10: نوع العملية | F10: قيمة المشتريات | G10: ض . ق . م | H10: اجمالى | I10: خصم من المنبع | J10: الصافى
A11: 2018-01-12 | B11: 52 | C11: teka | D11: =IFERROR(VLOOKUP($C11,Vendors!C:D,2,0),"") -> 100300600500400 | E11: سلع محلية | F11: 452 | G11: =IF(E11="الات ومعدات محلية",F11*5%,IF(E11="الات ومعدات مستوردة",F11*5%,IF(E11="",F11*0,F11*5%))) -> 22.6 | H11: =F11+G11 -> 474.6 | J11: =H11-I11 -> 474.6
D12: =IFERROR(VLOOKUP($C12,Vendors!C:D,2,0),"") ->  | G12: 0 | H12: 0 | J12: 0
D13: =IFERROR(VLOOKUP($C13,Vendors!C:D,2,0),"") ->  | G13: 0 | H13: 0 | J13: 0
D14: =IFERROR(VLOOKUP($C14,Vendors!C:D,2,0),"") ->  | G14: 0 | H14: 0 | J14: 0
D15: =IFERROR(VLOOKUP($C15,Vendors!C:D,2,0),"") ->  | G15: 0 | H15: 0 | J15: 0
D16: =IFERROR(VLOOKUP($C16,Vendors!C:D,2,0),"") ->  | G16: 0 | H16: 0 | J16: 0
D17: =IFERROR(VLOOKUP($C17,Vendors!C:D,2,0),"") ->  | G17: 0 | H17: 0 | J17: 0
D18: =IFERROR(VLOOKUP($C18,Vendors!C:D,2,0),"") ->  | G18: 0 | H18: 0 | J18: 0
D19: =IFERROR(VLOOKUP($C19,Vendors!C:D,2,0),"") ->  | G19: 0 | H19: 0 | J19: 0
D20: =IFERROR(VLOOKUP($C20,Vendors!C:D,2,0),"") ->  | G20: 0 | H20: 0 | J20: 0
D21: =IFERROR(VLOOKUP($C21,Vendors!C:D,2,0),"") ->  | G21: 0 | H21: 0 | J21: 0
D22: =IFERROR(VLOOKUP($C22,Vendors!C:D,2,0),"") ->  | G22: 0 | H22: 0 | J22: 0
D23: =IFERROR(VLOOKUP($C23,Vendors!C:D,2,0),"") ->  | G23: 0 | H23: 0 | J23: 0
D24: =IFERROR(VLOOKUP($C24,Vendors!C:D,2,0),"") ->  | G24: 0 | H24: 0 | J24: 0
D25: =IFERROR(VLOOKUP($C25,Vendors!C:D,2,0),"") ->  | G25: 0 | H25: 0 | J25: 0
D26: =IFERROR(VLOOKUP($C26,Vendors!C:D,2,0),"") ->  | G26: 0 | H26: 0 | J26: 0
D27: =IFERROR(VLOOKUP($C27,Vendors!C:D,2,0),"") ->  | G27: 0 | H27: 0 | J27: 0
D28: =IFERROR(VLOOKUP($C28,Vendors!C:D,2,0),"") ->  | G28: 0 | H28: 0 | J28: 0
D29: =IFERROR(VLOOKUP($C29,Vendors!C:D,2,0),"") ->  | G29: 0 | H29: 0 | J29: 0
D30: =IFERROR(VLOOKUP($C30,Vendors!C:D,2,0),"") ->  | G30: 0 | H30: 0 | J30: 0
D31: =IFERROR(VLOOKUP($C31,Vendors!C:D,2,0),"") ->  | G31: 0 | H31: 0 | J31: 0
D32: =IFERROR(VLOOKUP($C32,Vendors!C:D,2,0),"") ->  | G32: 0 | H32: 0 | J32: 0
D33: =IFERROR(VLOOKUP($C33,Vendors!C:D,2,0),"") ->  | G33: 0 | H33: 0 | J33: 0
D34: =IFERROR(VLOOKUP($C34,Vendors!C:D,2,0),"") ->  | G34: 0 | H34: 0 | J34: 0
D35: =IFERROR(VLOOKUP($C35,Vendors!C:D,2,0),"") ->  | G35: 0 | H35: 0 | J35: 0
D36: =IFERROR(VLOOKUP($C36,Vendors!C:D,2,0),"") ->  | G36: 0 | H36: 0 | J36: 0
D37: =IFERROR(VLOOKUP($C37,Vendors!C:D,2,0),"") ->  | G37: 0 | H37: 0 | J37: 0
D38: =IFERROR(VLOOKUP($C38,Vendors!C:D,2,0),"") ->  | G38: 0 | H38: 0 | J38: 0
D39: =IFERROR(VLOOKUP($C39,Vendors!C:D,2,0),"") ->  | G39: 0 | H39: 0 | J39: 0
D40: =IFERROR(VLOOKUP($C40,Vendors!C:D,2,0),"") ->  | G40: 0 | H40: 0 | J40: 0
D41: =IFERROR(VLOOKUP($C41,Vendors!C:D,2,0),"") ->  | G41: 0 | H41: 0 | J41: 0
D42: =IFERROR(VLOOKUP($C42,Vendors!C:D,2,0),"") ->  | G42: 0 | H42: 0 | J42: 0
D43: =IFERROR(VLOOKUP($C43,Vendors!C:D,2,0),"") ->  | G43: 0 | H43: 0 | J43: 0
D44: =IFERROR(VLOOKUP($C44,Vendors!C:D,2,0),"") ->  | G44: 0 | H44: 0 | J44: 0
D45: =IFERROR(VLOOKUP($C45,Vendors!C:D,2,0),"") ->  | G45: 0 | H45: 0 | J45: 0
D46: =IFERROR(VLOOKUP($C46,Vendors!C:D,2,0),"") ->  | G46: 0 | H46: 0 | J46: 0
D47: =IFERROR(VLOOKUP($C47,Vendors!C:D,2,0),"") ->  | G47: 0 | H47: 0 | J47: 0
D48: =IFERROR(VLOOKUP($C48,Vendors!C:D,2,0),"") ->  | G48: 0 | H48: 0 | J48: 0
D49: =IFERROR(VLOOKUP($C49,Vendors!C:D,2,0),"") ->  | G49: 0 | H49: 0 | J49: 0
D50: =IFERROR(VLOOKUP($C50,Vendors!C:D,2,0),"") ->  | G50: 0 | H50: 0 | J50: 0
D51: =IFERROR(VLOOKUP($C51,Vendors!C:D,2,0),"") ->  | G51: 0 | H51: 0 | J51: 0
D52: =IFERROR(VLOOKUP($C52,Vendors!C:D,2,0),"") ->  | G52: 0 | H52: 0 | J52: 0
D53: =IFERROR(VLOOKUP($C53,Vendors!C:D,2,0),"") ->  | G53: 0 | H53: 0 | J53: 0
D54: =IFERROR(VLOOKUP($C54,Vendors!C:D,2,0),"") ->  | G54: 0 | H54: 0 | J54: 0
D55: =IFERROR(VLOOKUP($C55,Vendors!C:D,2,0),"") ->  | G55: 0 | H55: 0 | J55: 0
D56: =IFERROR(VLOOKUP($C56,Vendors!C:D,2,0),"") ->  | G56: 0 | H56: 0 | J56: 0
D57: =IFERROR(VLOOKUP($C57,Vendors!C:D,2,0),"") ->  | G57: 0 | H57: 0 | J57: 0
D58: =IFERROR(VLOOKUP($C58,Vendors!C:D,2,0),"") ->  | G58: 0 | H58: 0 | J58: 0
D59: =IFERROR(VLOOKUP($C59,Vendors!C:D,2,0),"") ->  | G59: 0 | H59: 0 | J59: 0
D60: =IFERROR(VLOOKUP($C60,Vendors!C:D,2,0),"") ->  | G60: 0 | H60: 0 | J60: 0
D61: =IFERROR(VLOOKUP($C61,Vendors!C:D,2,0),"") ->  | G61: 0 | H61: 0 | J61: 0
D62: =IFERROR(VLOOKUP($C62,Vendors!C:D,2,0),"") ->  | G62: 0 | H62: 0 | J62: 0
D63: =IFERROR(VLOOKUP($C63,Vendors!C:D,2,0),"") ->  | G63: 0 | H63: 0 | J63: 0
D64: =IFERROR(VLOOKUP($C64,Vendors!C:D,2,0),"") ->  | G64: 0 | H64: 0 | J64: 0
D65: =IFERROR(VLOOKUP($C65,Vendors!C:D,2,0),"") ->  | G65: 0 | H65: 0 | J65: 0
D66: =IFERROR(VLOOKUP($C66,Vendors!C:D,2,0),"") ->  | G66: 0 | H66: 0 | J66: 0
D67: =IFERROR(VLOOKUP($C67,Vendors!C:D,2,0),"") ->  | G67: 0 | H67: 0 | J67: 0
D68: =IFERROR(VLOOKUP($C68,Vendors!C:D,2,0),"") ->  | G68: 0 | H68: 0 | J68: 0
D69: =IFERROR(VLOOKUP($C69,Vendors!C:D,2,0),"") ->  | G69: 0 | H69: 0 | J69: 0
D70: =IFERROR(VLOOKUP($C70,Vendors!C:D,2,0),"") ->  | G70: 0 | H70: 0 | J70: 0
D71: =IFERROR(VLOOKUP($C71,Vendors!C:D,2,0),"") ->  | G71: 0 | H71: 0 | J71: 0
D72: =IFERROR(VLOOKUP($C72,Vendors!C:D,2,0),"") ->  | G72: 0 | H72: 0 | J72: 0
D73: =IFERROR(VLOOKUP($C73,Vendors!C:D,2,0),"") ->  | G73: 0 | H73: 0 | J73: 0
D74: =IFERROR(VLOOKUP($C74,Vendors!C:D,2,0),"") ->  | G74: 0 | H74: 0 | J74: 0
D75: =IFERROR(VLOOKUP($C75,Vendors!C:D,2,0),"") ->  | G75: =IF(E75="الات ومعدات محلية",F75*5%,IF(E75="الات ومعدات مستوردة",F75*5%,IF(E75="",F75*0,F75*5%))) -> 0 | H75: =F75+G75 -> 0 | J75: =H75-I75 -> 0
D76: =IFERROR(VLOOKUP($C76,Vendors!C:D,2,0),"") ->  | G76: 0 | H76: 0 | J76: 0
D77: =IFERROR(VLOOKUP($C77,Vendors!C:D,2,0),"") ->  | G77: 0 | H77: 0 | J77: 0
D78: =IFERROR(VLOOKUP($C78,Vendors!C:D,2,0),"") ->  | G78: 0 | H78: 0 | J78: 0
D79: =IFERROR(VLOOKUP($C79,Vendors!C:D,2,0),"") ->  | G79: 0 | H79: 0 | J79: 0
D80: =IFERROR(VLOOKUP($C80,Vendors!C:D,2,0),"") ->  | G80: 0 | H80: 0 | J80: 0
D81: =IFERROR(VLOOKUP($C81,Vendors!C:D,2,0),"") ->  | G81: 0 | H81: 0 | J81: 0
D82: =IFERROR(VLOOKUP($C82,Vendors!C:D,2,0),"") ->  | G82: 0 | H82: 0 | J82: 0
D83: =IFERROR(VLOOKUP($C83,Vendors!C:D,2,0),"") ->  | G83: 0 | H83: 0 | J83: 0
D84: =IFERROR(VLOOKUP($C84,Vendors!C:D,2,0),"") ->  | G84: 0 | H84: 0 | J84: 0
D85: =IFERROR(VLOOKUP($C85,Vendors!C:D,2,0),"") ->  | G85: 0 | H85: 0 | J85: 0
D86: =IFERROR(VLOOKUP($C86,Vendors!C:D,2,0),"") ->  | G86: 0 | H86: 0 | J86: 0
D87: =IFERROR(VLOOKUP($C87,Vendors!C:D,2,0),"") ->  | G87: 0 | H87: 0 | J87: 0
D88: =IFERROR(VLOOKUP($C88,Vendors!C:D,2,0),"") ->  | G88: 0 | H88: 0 | J88: 0
D89: =IFERROR(VLOOKUP($C89,Vendors!C:D,2,0),"") ->  | G89: 0 | H89: 0 | J89: 0
D90: =IFERROR(VLOOKUP($C90,Vendors!C:D,2,0),"") ->  | G90: 0 | H90: 0 | J90: 0
D91: =IFERROR(VLOOKUP($C91,Vendors!C:D,2,0),"") ->  | G91: 0 | H91: 0 | J91: 0
D92: =IFERROR(VLOOKUP($C92,Vendors!C:D,2,0),"") ->  | G92: 0 | H92: 0 | J92: 0
D93: =IFERROR(VLOOKUP($C93,Vendors!C:D,2,0),"") ->  | G93: 0 | H93: 0 | J93: 0
D94: =IFERROR(VLOOKUP($C94,Vendors!C:D,2,0),"") ->  | G94: 0 | H94: 0 | J94: 0
D95: =IFERROR(VLOOKUP($C95,Vendors!C:D,2,0),"") ->  | G95: 0 | H95: 0 | J95: 0
D96: =IFERROR(VLOOKUP($C96,Vendors!C:D,2,0),"") ->  | G96: 0 | H96: 0 | J96: 0
D97: =IFERROR(VLOOKUP($C97,Vendors!C:D,2,0),"") ->  | G97: 0 | H97: 0 | J97: 0
D98: =IFERROR(VLOOKUP($C98,Vendors!C:D,2,0),"") ->  | G98: 0 | H98: 0 | J98: 0
D99: =IFERROR(VLOOKUP($C99,Vendors!C:D,2,0),"") ->  | G99: 0 | H99: 0 | J99: 0
D100: =IFERROR(VLOOKUP($C100,Vendors!C:D,2,0),"") ->  | G100: 0 | H100: 0 | J100: 0
D101: =IFERROR(VLOOKUP($C101,Vendors!C:D,2,0),"") ->  | G101: 0 | H101: 0 | J101: 0
D102: =IFERROR(VLOOKUP($C102,Vendors!C:D,2,0),"") ->  | G102: 0 | H102: 0 | J102: 0
D103: =IFERROR(VLOOKUP($C103,Vendors!C:D,2,0),"") ->  | G103: 0 | H103: 0 | J103: 0
D104: =IFERROR(VLOOKUP($C104,Vendors!C:D,2,0),"") ->  | G104: 0 | H104: 0 | J104: 0
D105: =IFERROR(VLOOKUP($C105,Vendors!C:D,2,0),"") ->  | G105: 0 | H105: 0 | J105: 0
D106: =IFERROR(VLOOKUP($C106,Vendors!C:D,2,0),"") ->  | G106: 0 | H106: 0 | J106: 0
D107: =IFERROR(VLOOKUP($C107,Vendors!C:D,2,0),"") ->  | G107: 0 | H107: 0 | J107: 0
D108: =IFERROR(VLOOKUP($C108,Vendors!C:D,2,0),"") ->  | G108: 0 | H108: 0 | J108: 0
D109: =IFERROR(VLOOKUP($C109,Vendors!C:D,2,0),"") ->  | G109: 0 | H109: 0 | J109: 0
D110: =IFERROR(VLOOKUP($C110,Vendors!C:D,2,0),"") ->  | G110: 0 | H110: 0 | J110: 0
D111: =IFERROR(VLOOKUP($C111,Vendors!C:D,2,0),"") ->  | G111: 0 | H111: 0 | J111: 0
D112: =IFERROR(VLOOKUP($C112,Vendors!C:D,2,0),"") ->  | G112: 0 | H112: 0 | J112: 0
D113: =IFERROR(VLOOKUP($C113,Vendors!C:D,2,0),"") ->  | G113: 0 | H113: 0 | J113: 0
D114: =IFERROR(VLOOKUP($C114,Vendors!C:D,2,0),"") ->  | G114: 0 | H114: 0 | J114: 0
D115: =IFERROR(VLOOKUP($C115,Vendors!C:D,2,0),"") ->  | G115: 0 | H115: 0 | J115: 0
D116: =IFERROR(VLOOKUP($C116,Vendors!C:D,2,0),"") ->  | G116: 0 | H116: 0 | J116: 0
D117: =IFERROR(VLOOKUP($C117,Vendors!C:D,2,0),"") ->  | G117: 0 | H117: 0 | J117: 0
D118: =IFERROR(VLOOKUP($C118,Vendors!C:D,2,0),"") ->  | G118: 0 | H118: 0 | J118: 0
D119: =IFERROR(VLOOKUP($C119,Vendors!C:D,2,0),"") ->  | G119: 0 | H119: 0 | J119: 0
D120: =IFERROR(VLOOKUP($C120,Vendors!C:D,2,0),"") ->  | G120: 0 | H120: 0 | J120: 0
D121: =IFERROR(VLOOKUP($C121,Vendors!C:D,2,0),"") ->  | G121: 0 | H121: 0 | J121: 0
D122: =IFERROR(VLOOKUP($C122,Vendors!C:D,2,0),"") ->  | G122: 0 | H122: 0 | J122: 0
D123: =IFERROR(VLOOKUP($C123,Vendors!C:D,2,0),"") ->  | G123: 0 | H123: 0 | J123: 0
D124: =IFERROR(VLOOKUP($C124,Vendors!C:D,2,0),"") ->  | G124: 0 | H124: 0 | J124: 0
D125: =IFERROR(VLOOKUP($C125,Vendors!C:D,2,0),"") ->  | G125: 0 | H125: 0 | J125: 0
D126: =IFERROR(VLOOKUP($C126,Vendors!C:D,2,0),"") ->  | G126: 0 | H126: 0 | J126: 0
D127: =IFERROR(VLOOKUP($C127,Vendors!C:D,2,0),"") ->  | G127: 0 | H127: 0 | J127: 0
D128: =IFERROR(VLOOKUP($C128,Vendors!C:D,2,0),"") ->  | G128: 0 | H128: 0 | J128: 0
D129: =IFERROR(VLOOKUP($C129,Vendors!C:D,2,0),"") ->  | G129: 0 | H129: 0 | J129: 0
D130: =IFERROR(VLOOKUP($C130,Vendors!C:D,2,0),"") ->  | G130: 0 | H130: 0 | J130: 0
D131: =IFERROR(VLOOKUP($C131,Vendors!C:D,2,0),"") ->  | G131: 0 | H131: 0 | J131: 0
D132: =IFERROR(VLOOKUP($C132,Vendors!C:D,2,0),"") ->  | G132: 0 | H132: 0 | J132: 0
D133: =IFERROR(VLOOKUP($C133,Vendors!C:D,2,0),"") ->  | G133: 0 | H133: 0 | J133: 0
D134: =IFERROR(VLOOKUP($C134,Vendors!C:D,2,0),"") ->  | G134: 0 | H134: 0 | J134: 0
D135: =IFERROR(VLOOKUP($C135,Vendors!C:D,2,0),"") ->  | G135: 0 | H135: 0 | J135: 0
D136: =IFERROR(VLOOKUP($C136,Vendors!C:D,2,0),"") ->  | G136: 0 | H136: 0 | J136: 0
D137: =IFERROR(VLOOKUP($C137,Vendors!C:D,2,0),"") ->  | G137: 0 | H137: 0 | J137: 0
D138: =IFERROR(VLOOKUP($C138,Vendors!C:D,2,0),"") ->  | G138: 0 | H138: 0 | J138: 0
D139: =IFERROR(VLOOKUP($C139,Vendors!C:D,2,0),"") ->  | G139: =IF(E139="الات ومعدات محلية",F139*5%,IF(E139="الات ومعدات مستوردة",F139*5%,IF(E139="",F139*0,F139*5%))) -> 0 | H139: =F139+G139 -> 0 | J139: =H139-I139 -> 0
D140: =IFERROR(VLOOKUP($C140,Vendors!C:D,2,0),"") ->  | G140: 0 | H140: 0 | J140: 0
D141: =IFERROR(VLOOKUP($C141,Vendors!C:D,2,0),"") ->  | G141: 0 | H141: 0 | J141: 0
D142: =IFERROR(VLOOKUP($C142,Vendors!C:D,2,0),"") ->  | G142: 0 | H142: 0 | J142: 0
D143: =IFERROR(VLOOKUP($C143,Vendors!C:D,2,0),"") ->  | G143: 0 | H143: 0 | J143: 0
D144: =IFERROR(VLOOKUP($C144,Vendors!C:D,2,0),"") ->  | G144: 0 | H144: 0 | J144: 0
D145: =IFERROR(VLOOKUP($C145,Vendors!C:D,2,0),"") ->  | G145: 0 | H145: 0 | J145: 0
D146: =IFERROR(VLOOKUP($C146,Vendors!C:D,2,0),"") ->  | G146: 0 | H146: 0 | J146: 0
D147: =IFERROR(VLOOKUP($C147,Vendors!C:D,2,0),"") ->  | G147: 0 | H147: 0 | J147: 0
D148: =IFERROR(VLOOKUP($C148,Vendors!C:D,2,0),"") ->  | G148: 0 | H148: 0 | J148: 0
D149: =IFERROR(VLOOKUP($C149,Vendors!C:D,2,0),"") ->  | G149: 0 | H149: 0 | J149: 0
D150: =IFERROR(VLOOKUP($C150,Vendors!C:D,2,0),"") ->  | G150: 0 | H150: 0 | J150: 0
D151: =IFERROR(VLOOKUP($C151,Vendors!C:D,2,0),"") ->  | G151: 0 | H151: 0 | J151: 0
D152: =IFERROR(VLOOKUP($C152,Vendors!C:D,2,0),"") ->  | G152: 0 | H152: 0 | J152: 0
D153: =IFERROR(VLOOKUP($C153,Vendors!C:D,2,0),"") ->  | G153: 0 | H153: 0 | J153: 0
D154: =IFERROR(VLOOKUP($C154,Vendors!C:D,2,0),"") ->  | G154: 0 | H154: 0 | J154: 0
D155: =IFERROR(VLOOKUP($C155,Vendors!C:D,2,0),"") ->  | G155: 0 | H155: 0 | J155: 0
D156: =IFERROR(VLOOKUP($C156,Vendors!C:D,2,0),"") ->  | G156: 0 | H156: 0 | J156: 0
D157: =IFERROR(VLOOKUP($C157,Vendors!C:D,2,0),"") ->  | G157: 0 | H157: 0 | J157: 0
D158: =IFERROR(VLOOKUP($C158,Vendors!C:D,2,0),"") ->  | G158: 0 | H158: 0 | J158: 0
D159: =IFERROR(VLOOKUP($C159,Vendors!C:D,2,0),"") ->  | G159: 0 | H159: 0 | J159: 0
D160: =IFERROR(VLOOKUP($C160,Vendors!C:D,2,0),"") ->  | G160: 0 | H160: 0 | J160: 0
D161: =IFERROR(VLOOKUP($C161,Vendors!C:D,2,0),"") ->  | G161: 0 | H161: 0 | J161: 0
D162: =IFERROR(VLOOKUP($C162,Vendors!C:D,2,0),"") ->  | G162: 0 | H162: 0 | J162: 0
D163: =IFERROR(VLOOKUP($C163,Vendors!C:D,2,0),"") ->  | G163: 0 | H163: 0 | J163: 0
D164: =IFERROR(VLOOKUP($C164,Vendors!C:D,2,0),"") ->  | G164: 0 | H164: 0 | J164: 0
D165: =IFERROR(VLOOKUP($C165,Vendors!C:D,2,0),"") ->  | G165: 0 | H165: 0 | J165: 0
D166: =IFERROR(VLOOKUP($C166,Vendors!C:D,2,0),"") ->  | G166: 0 | H166: 0 | J166: 0
D167: =IFERROR(VLOOKUP($C167,Vendors!C:D,2,0),"") ->  | G167: 0 | H167: 0 | J167: 0
D168: =IFERROR(VLOOKUP($C168,Vendors!C:D,2,0),"") ->  | G168: 0 | H168: 0 | J168: 0
D169: =IFERROR(VLOOKUP($C169,Vendors!C:D,2,0),"") ->  | G169: 0 | H169: 0 | J169: 0
D170: =IFERROR(VLOOKUP($C170,Vendors!C:D,2,0),"") ->  | G170: 0 | H170: 0 | J170: 0
D171: =IFERROR(VLOOKUP($C171,Vendors!C:D,2,0),"") ->  | G171: 0 | H171: 0 | J171: 0
D172: =IFERROR(VLOOKUP($C172,Vendors!C:D,2,0),"") ->  | G172: 0 | H172: 0 | J172: 0
D173: =IFERROR(VLOOKUP($C173,Vendors!C:D,2,0),"") ->  | G173: 0 | H173: 0 | J173: 0
D174: =IFERROR(VLOOKUP($C174,Vendors!C:D,2,0),"") ->  | G174: 0 | H174: 0 | J174: =H174-I174 -> 0
A175: إجمالى | E175: سلع محلية | F175: =SUMIF(E11:E174,E175,F11:F174) -> 452 | G175: =F175*5% -> 22.6 | H175: =F175+G175 -> 474.6 | I175: =SUMIF(E11:E174,E175,I11:I174) -> 0 | J175: =H175-I175 -> 474.6
E176: سلع محلية | F176: 2 | G176: 0.1 | H176: =F176+G176 -> 2.1 | I176: 2 | J176: =H176-I176 -> 0.1
E177: سلع مستوردة | F177: =SUMIF(E13:E176,E177,F13:F176) -> 0 | G177: 0 | H177: 0 | I177: =SUMIF(E13:E176,E177,I13:I176) -> 0 | J177: 0
E178: خدمات مستوردة | F178: 0 | G178: 0 | H178: 0 | I178: 0 | J178: 0
E179: الات ومعدات محلية | F179: 0 | G179: 0 | H179: 0 | I179: 0 | J179: 0
E180: الات ومعدات مستوردة | F180: 0 | G180: 0 | H180: 0 | I180: 0 | J180: 0

Sheet Purchase(2)
C4: رقم التسجيل الضريبي
C6: العنوان
A8: عدد فواتير المشتريات | B8: =COUNT($A$11:$A$500) -> 1 | D8: تحليل مشتريات | F8: فيراير | G8: =#REF! -> 
A10: التاريخ | B10: رقم الفاتورة | C10: المورد | D10: الرقم الضريبي | E10: نوع العملية | F10: قيمة المشتريات | G10: ض . ق . م | H10: اجمالى | I10: خصم من المنبع | J10: الصافى
A11: 1900-01-01 | B11: 3126 | C11: مؤسسة حمرا للألمنيوم | D11: =IFERROR(VLOOKUP($C11,Vendors!C:D,2,0),"") ->  | E11: خدمات محلية | F11: 561 | G11: =IF(E11="الات ومعدات محلية",F11*5%,IF(E11="الات ومعدات مستوردة",F11*5%,IF(E11="",F11*0,F11*5%))) -> 28.05 | H11: =F11+G11 -> 589.05 | J11: =H11-I11 -> 589.05
D12: =IFERROR(VLOOKUP($C12,Vendors!C:D,2,0),"") ->  | G12: 0 | H12: 0 | J12: 0
D13: =IFERROR(VLOOKUP($C13,Vendors!C:D,2,0),"") ->  | G13: 0 | H13: 0 | J13: 0
D14: =IFERROR(VLOOKUP($C14,Vendors!C:D,2,0),"") ->  | G14: 0 | H14: 0 | J14: 0
D15: =IFERROR(VLOOKUP($C15,Vendors!C:D,2,0),"") ->  | G15: 0 | H15: 0 | J15: 0
D16: =IFERROR(VLOOKUP($C16,Vendors!C:D,2,0),"") ->  | G16: 0 | H16: 0 | J16: 0
D17: =IFERROR(VLOOKUP($C17,Vendors!C:D,2,0),"") ->  | G17: 0 | H17: 0 | J17: 0
D18: =IFERROR(VLOOKUP($C18,Vendors!C:D,2,0),"") ->  | G18: 0 | H18: 0 | J18: 0
D19: =IFERROR(VLOOKUP($C19,Vendors!C:D,2,0),"") ->  | G19: 0 | H19: 0 | J19: 0
D20: =IFERROR(VLOOKUP($C20,Vendors!C:D,2,0),"") ->  | G20: 0 | H20: 0 | J20: 0
D21: =IFERROR(VLOOKUP($C21,Vendors!C:D,2,0),"") ->  | G21: 0 | H21: 0 | J21: 0
D22: =IFERROR(VLOOKUP($C22,Vendors!C:D,2,0),"") ->  | G22: 0 | H22: 0 | J22: 0
D23: =IFERROR(VLOOKUP($C23,Vendors!C:D,2,0),"") ->  | G23: 0 | H23: 0 | J23: 0
D24: =IFERROR(VLOOKUP($C24,Vendors!C:D,2,0),"") ->  | G24: 0 | H24: 0 | J24: 0
D25: =IFERROR(VLOOKUP($C25,Vendors!C:D,2,0),"") ->  | G25: 0 | H25: 0 | J25: 0
D26: =IFERROR(VLOOKUP($C26,Vendors!C:D,2,0),"") ->  | G26: 0 | H26: 0 | J26: 0
D27: =IFERROR(VLOOKUP($C27,Vendors!C:D,2,0),"") ->  | G27: 0 | H27: 0 | J27: 0
D28: =IFERROR(VLOOKUP($C28,Vendors!C:D,2,0),"") ->  | G28: 0 | H28: 0 | J28: 0
D29: =IFERROR(VLOOKUP($C29,Vendors!C:D,2,0),"") ->  | G29: 0 | H29: 0 | J29: 0
D30: =IFERROR(VLOOKUP($C30,Vendors!C:D,2,0),"") ->  | G30: 0 | H30: 0 | J30: 0
D31: =IFERROR(VLOOKUP($C31,Vendors!C:D,2,0),"") ->  | G31: 0 | H31: 0 | J31: 0
D32: =IFERROR(VLOOKUP($C32,Vendors!C:D,2,0),"") ->  | G32: 0 | H32: 0 | J32: 0
D33: =IFERROR(VLOOKUP($C33,Vendors!C:D,2,0),"") ->  | G33: 0 | H33: 0 | J33: 0
D34: =IFERROR(VLOOKUP($C34,Vendors!C:D,2,0),"") ->  | G34: 0 | H34: 0 | J34: 0
D35: =IFERROR(VLOOKUP($C35,Vendors!C:D,2,0),"") ->  | G35: 0 | H35: 0 | J35: 0
D36: =IFERROR(VLOOKUP($C36,Vendors!C:D,2,0),"") ->  | G36: 0 | H36: 0 | J36: 0
D37: =IFERROR(VLOOKUP($C37,Vendors!C:D,2,0),"") ->  | G37: 0 | H37: 0 | J37: 0
D38: =IFERROR(VLOOKUP($C38,Vendors!C:D,2,0),"") ->  | G38: 0 | H38: 0 | J38: 0
D39: =IFERROR(VLOOKUP($C39,Vendors!C:D,2,0),"") ->  | G39: 0 | H39: 0 | J39: 0
D40: =IFERROR(VLOOKUP($C40,Vendors!C:D,2,0),"") ->  | G40: 0 | H40: 0 | J40: 0
D41: =IFERROR(VLOOKUP($C41,Vendors!C:D,2,0),"") ->  | G41: 0 | H41: 0 | J41: 0
D42: =IFERROR(VLOOKUP($C42,Vendors!C:D,2,0),"") ->  | G42: 0 | H42: 0 | J42: 0
D43: =IFERROR(VLOOKUP($C43,Vendors!C:D,2,0),"") ->  | G43: 0 | H43: 0 | J43: 0
D44: =IFERROR(VLOOKUP($C44,Vendors!C:D,2,0),"") ->  | G44: 0 | H44: 0 | J44: 0
D45: =IFERROR(VLOOKUP($C45,Vendors!C:D,2,0),"") ->  | G45: 0 | H45: 0 | J45: 0
D46: =IFERROR(VLOOKUP($C46,Vendors!C:D,2,0),"") ->  | G46: 0 | H46: 0 | J46: 0
D47: =IFERROR(VLOOKUP($C47,Vendors!C:D,2,0),"") ->  | G47: 0 | H47: 0 | J47: 0
D48: =IFERROR(VLOOKUP($C48,Vendors!C:D,2,0),"") ->  | G48: 0 | H48: 0 | J48: 0
D49: =IFERROR(VLOOKUP($C49,Vendors!C:D,2,0),"") ->  | G49: 0 | H49: 0 | J49: 0
D50: =IFERROR(VLOOKUP($C50,Vendors!C:D,2,0),"") ->  | G50: 0 | H50: 0 | J50: 0
D51: =IFERROR(VLOOKUP($C51,Vendors!C:D,2,0),"") ->  | G51: 0 | H51: 0 | J51: 0
D52: =IFERROR(VLOOKUP($C52,Vendors!C:D,2,0),"") ->  | G52: 0 | H52: 0 | J52: 0
D53: =IFERROR(VLOOKUP($C53,Vendors!C:D,2,0),"") ->  | G53: 0 | H53: 0 | J53: 0
D54: =IFERROR(VLOOKUP($C54,Vendors!C:D,2,0),"") ->  | G54: 0 | H54: 0 | J54: 0
D55: =IFERROR(VLOOKUP($C55,Vendors!C:D,2,0),"") ->  | G55: 0 | H55: 0 | J55: 0
D56: =IFERROR(VLOOKUP($C56,Vendors!C:D,2,0),"") ->  | G56: 0 | H56: 0 | J56: 0
D57: =IFERROR(VLOOKUP($C57,Vendors!C:D,2,0),"") ->  | G57: 0 | H57: 0 | J57: 0
D58: =IFERROR(VLOOKUP($C58,Vendors!C:D,2,0),"") ->  | G58: 0 | H58: 0 | J58: 0
D59: =IFERROR(VLOOKUP($C59,Vendors!C:D,2,0),"") ->  | G59: 0 | H59: 0 | J59: 0
D60: =IFERROR(VLOOKUP($C60,Vendors!C:D,2,0),"") ->  | G60: 0 | H60: 0 | J60: 0
D61: =IFERROR(VLOOKUP($C61,Vendors!C:D,2,0),"") ->  | G61: 0 | H61: 0 | J61: 0
D62: =IFERROR(VLOOKUP($C62,Vendors!C:D,2,0),"") ->  | G62: 0 | H62: 0 | J62: 0
D63: =IFERROR(VLOOKUP($C63,Vendors!C:D,2,0),"") ->  | G63: 0 | H63: 0 | J63: 0
D64: =IFERROR(VLOOKUP($C64,Vendors!C:D,2,0),"") ->  | G64: 0 | H64: 0 | J64: 0
D65: =IFERROR(VLOOKUP($C65,Vendors!C:D,2,0),"") ->  | G65: 0 | H65: 0 | J65: 0
D66: =IFERROR(VLOOKUP($C66,Vendors!C:D,2,0),"") ->  | G66: 0 | H66: 0 | J66: 0
D67: =IFERROR(VLOOKUP($C67,Vendors!C:D,2,0),"") ->  | G67: 0 | H67: 0 | J67: 0
D68: =IFERROR(VLOOKUP($C68,Vendors!C:D,2,0),"") ->  | G68: 0 | H68: 0 | J68: 0
D69: =IFERROR(VLOOKUP($C69,Vendors!C:D,2,0),"") ->  | G69: 0 | H69: 0 | J69: 0
D70: =IFERROR(VLOOKUP($C70,Vendors!C:D,2,0),"") ->  | G70: 0 | H70: 0 | J70: 0
D71: =IFERROR(VLOOKUP($C71,Vendors!C:D,2,0),"") ->  | G71: 0 | H71: 0 | J71: 0
D72: =IFERROR(VLOOKUP($C72,Vendors!C:D,2,0),"") ->  | G72: 0 | H72: 0 | J72: 0
D73: =IFERROR(VLOOKUP($C73,Vendors!C:D,2,0),"") ->  | G73: 0 | H73: 0 | J73: 0
D74: =IFERROR(VLOOKUP($C74,Vendors!C:D,2,0),"") ->  | G74: 0 | H74: 0 | J74: 0
D75: =IFERROR(VLOOKUP($C75,Vendors!C:D,2,0),"") ->  | G75: =IF(E75="الات ومعدات محلية",F75*5%,IF(E75="الات ومعدات مستوردة",F75*5%,IF(E75="",F75*0,F75*5%))) -> 0 | H75: =F75+G75 -> 0 | J75: =H75-I75 -> 0
D76: =IFERROR(VLOOKUP($C76,Vendors!C:D,2,0),"") ->  | G76: 0 | H76: 0 | J76: 0
D77: =IFERROR(VLOOKUP($C77,Vendors!C:D,2,0),"") ->  | G77: 0 | H77: 0 | J77: 0
D78: =IFERROR(VLOOKUP($C78,Vendors!C:D,2,0),"") ->  | G78: 0 | H78: 0 | J78: 0
D79: =IFERROR(VLOOKUP($C79,Vendors!C:D,2,0),"") ->  | G79: 0 | H79: 0 | J79: 0
D80: =IFERROR(VLOOKUP($C80,Vendors!C:D,2,0),"") ->  | G80: 0 | H80: 0 | J80: 0
D81: =IFERROR(VLOOKUP($C81,Vendors!C:D,2,0),"") ->  | G81: 0 | H81: 0 | J81: 0
D82: =IFERROR(VLOOKUP($C82,Vendors!C:D,2,0),"") ->  | G82: 0 | H82: 0 | J82: 0
D83: =IFERROR(VLOOKUP($C83,Vendors!C:D,2,0),"") ->  | G83: 0 | H83: 0 | J83: 0
D84: =IFERROR(VLOOKUP($C84,Vendors!C:D,2,0),"") ->  | G84: 0 | H84: 0 | J84: 0
D85: =IFERROR(VLOOKUP($C85,Vendors!C:D,2,0),"") ->  | G85: 0 | H85: 0 | J85: 0
D86: =IFERROR(VLOOKUP($C86,Vendors!C:D,2,0),"") ->  | G86: 0 | H86: 0 | J86: 0
D87: =IFERROR(VLOOKUP($C87,Vendors!C:D,2,0),"") ->  | G87: 0 | H87: 0 | J87: 0
D88: =IFERROR(VLOOKUP($C88,Vendors!C:D,2,0),"") ->  | G88: 0 | H88: 0 | J88: 0
D89: =IFERROR(VLOOKUP($C89,Vendors!C:D,2,0),"") ->  | G89: 0 | H89: 0 | J89: 0
D90: =IFERROR(VLOOKUP($C90,Vendors!C:D,2,0),"") ->  | G90: 0 | H90: 0 | J90: 0
D91: =IFERROR(VLOOKUP($C91,Vendors!C:D,2,0),"") ->  | G91: 0 | H91: 0 | J91: 0
D92: =IFERROR(VLOOKUP($C92,Vendors!C:D,2,0),"") ->  | G92: 0 | H92: 0 | J92: 0
D93: =IFERROR(VLOOKUP($C93,Vendors!C:D,2,0),"") ->  | G93: 0 | H93: 0 | J93: 0
D94: =IFERROR(VLOOKUP($C94,Vendors!C:D,2,0),"") ->  | G94: 0 | H94: 0 | J94: 0
D95: =IFERROR(VLOOKUP($C95,Vendors!C:D,2,0),"") ->  | G95: 0 | H95: 0 | J95: 0
D96: =IFERROR(VLOOKUP($C96,Vendors!C:D,2,0),"") ->  | G96: 0 | H96: 0 | J96: 0
D97: =IFERROR(VLOOKUP($C97,Vendors!C:D,2,0),"") ->  | G97: 0 | H97: 0 | J97: 0
D98: =IFERROR(VLOOKUP($C98,Vendors!C:D,2,0),"") ->  | G98: 0 | H98: 0 | J98: 0
D99: =IFERROR(VLOOKUP($C99,Vendors!C:D,2,0),"") ->  | G99: 0 | H99: 0 | J99: 0
D100: =IFERROR(VLOOKUP($C100,Vendors!C:D,2,0),"") ->  | G100: 0 | H100: 0 | J100: 0
D101: =IFERROR(VLOOKUP($C101,Vendors!C:D,2,0),"") ->  | G101: 0 | H101: 0 | J101: 0
D102: =IFERROR(VLOOKUP($C102,Vendors!C:D,2,0),"") ->  | G102: 0 | H102: 0 | J102: 0
D103: =IFERROR(VLOOKUP($C103,Vendors!C:D,2,0),"") ->  | G103: 0 | H103: 0 | J103: 0
D104: =IFERROR(VLOOKUP($C104,Vendors!C:D,2,0),"") ->  | G104: 0 | H104: 0 | J104: 0
D105: =IFERROR(VLOOKUP($C105,Vendors!C:D,2,0),"") ->  | G105: 0 | H105: 0 | J105: 0
D106: =IFERROR(VLOOKUP($C106,Vendors!C:D,2,0),"") ->  | G106: 0 | H106: 0 | J106: 0
D107: =IFERROR(VLOOKUP($C107,Vendors!C:D,2,0),"") ->  | G107: 0 | H107: 0 | J107: 0
D108: =IFERROR(VLOOKUP($C108,Vendors!C:D,2,0),"") ->  | G108: 0 | H108: 0 | J108: 0
D109: =IFERROR(VLOOKUP($C109,Vendors!C:D,2,0),"") ->  | G109: 0 | H109: 0 | J109: 0
D110: =IFERROR(VLOOKUP($C110,Vendors!C:D,2,0),"") ->  | G110: 0 | H110: 0 | J110: 0
D111: =IFERROR(VLOOKUP($C111,Vendors!C:D,2,0),"") ->  | G111: 0 | H111: 0 | J111: 0
D112: =IFERROR(VLOOKUP($C112,Vendors!C:D,2,0),"") ->  | G112: 0 | H112: 0 | J112: 0
D113: =IFERROR(VLOOKUP($C113,Vendors!C:D,2,0),"") ->  | G113: 0 | H113: 0 | J113: 0
D114: =IFERROR(VLOOKUP($C114,Vendors!C:D,2,0),"") ->  | G114: 0 | H114: 0 | J114: 0
D115: =IFERROR(VLOOKUP($C115,Vendors!C:D,2,0),"") ->  | G115: 0 | H115: 0 | J115: 0
D116: =IFERROR(VLOOKUP($C116,Vendors!C:D,2,0),"") ->  | G116: 0 | H116: 0 | J116: 0
D117: =IFERROR(VLOOKUP($C117,Vendors!C:D,2,0),"") ->  | G117: 0 | H117: 0 | J117: 0
D118: =IFERROR(VLOOKUP($C118,Vendors!C:D,2,0),"") ->  | G118: 0 | H118: 0 | J118: 0
D119: =IFERROR(VLOOKUP($C119,Vendors!C:D,2,0),"") ->  | G119: 0 | H119: 0 | J119: 0
D120: =IFERROR(VLOOKUP($C120,Vendors!C:D,2,0),"") ->  | G120: 0 | H120: 0 | J120: 0
D121: =IFERROR(VLOOKUP($C121,Vendors!C:D,2,0),"") ->  | G121: 0 | H121: 0 | J121: 0
D122: =IFERROR(VLOOKUP($C122,Vendors!C:D,2,0),"") ->  | G122: 0 | H122: 0 | J122: 0
D123: =IFERROR(VLOOKUP($C123,Vendors!C:D,2,0),"") ->  | G123: 0 | H123: 0 | J123: 0
D124: =IFERROR(VLOOKUP($C124,Vendors!C:D,2,0),"") ->  | G124: 0 | H124: 0 | J124: 0
D125: =IFERROR(VLOOKUP($C125,Vendors!C:D,2,0),"") ->  | G125: 0 | H125: 0 | J125: 0
D126: =IFERROR(VLOOKUP($C126,Vendors!C:D,2,0),"") ->  | G126: 0 | H126: 0 | J126: 0
D127: =IFERROR(VLOOKUP($C127,Vendors!C:D,2,0),"") ->  | G127: 0 | H127: 0 | J127: 0
D128: =IFERROR(VLOOKUP($C128,Vendors!C:D,2,0),"") ->  | G128: 0 | H128: 0 | J128: 0
D129: =IFERROR(VLOOKUP($C129,Vendors!C:D,2,0),"") ->  | G129: 0 | H129: 0 | J129: 0
D130: =IFERROR(VLOOKUP($C130,Vendors!C:D,2,0),"") ->  | G130: 0 | H130: 0 | J130: 0
D131: =IFERROR(VLOOKUP($C131,Vendors!C:D,2,0),"") ->  | G131: 0 | H131: 0 | J131: 0
D132: =IFERROR(VLOOKUP($C132,Vendors!C:D,2,0),"") ->  | G132: 0 | H132: 0 | J132: 0
D133: =IFERROR(VLOOKUP($C133,Vendors!C:D,2,0),"") ->  | G133: 0 | H133: 0 | J133: 0
D134: =IFERROR(VLOOKUP($C134,Vendors!C:D,2,0),"") ->  | G134: 0 | H134: 0 | J134: 0
D135: =IFERROR(VLOOKUP($C135,Vendors!C:D,2,0),"") ->  | G135: 0 | H135: 0 | J135: 0
D136: =IFERROR(VLOOKUP($C136,Vendors!C:D,2,0),"") ->  | G136: 0 | H136: 0 | J136: 0
D137: =IFERROR(VLOOKUP($C137,Vendors!C:D,2,0),"") ->  | G137: 0 | H137: 0 | J137: 0
D138: =IFERROR(VLOOKUP($C138,Vendors!C:D,2,0),"") ->  | G138: 0 | H138: 0 | J138: 0
D139: =IFERROR(VLOOKUP($C139,Vendors!C:D,2,0),"") ->  | G139: =IF(E139="الات ومعدات محلية",F139*5%,IF(E139="الات ومعدات مستوردة",F139*5%,IF(E139="",F139*0,F139*5%))) -> 0 | H139: =F139+G139 -> 0 | J139: =H139-I139 -> 0
D140: =IFERROR(VLOOKUP($C140,Vendors!C:D,2,0),"") ->  | G140: 0 | H140: 0 | J140: 0
D141: =IFERROR(VLOOKUP($C141,Vendors!C:D,2,0),"") ->  | G141: 0 | H141: 0 | J141: 0
D142: =IFERROR(VLOOKUP($C142,Vendors!C:D,2,0),"") ->  | G142: 0 | H142: 0 | J142: 0
D143: =IFERROR(VLOOKUP($C143,Vendors!C:D,2,0),"") ->  | G143: 0 | H143: 0 | J143: 0
D144: =IFERROR(VLOOKUP($C144,Vendors!C:D,2,0),"") ->  | G144: 0 | H144: 0 | J144: 0
D145: =IFERROR(VLOOKUP($C145,Vendors!C:D,2,0),"") ->  | G145: 0 | H145: 0 | J145: 0
D146: =IFERROR(VLOOKUP($C146,Vendors!C:D,2,0),"") ->  | G146: 0 | H146: 0 | J146: 0
D147: =IFERROR(VLOOKUP($C147,Vendors!C:D,2,0),"") ->  | G147: 0 | H147: 0 | J147: 0
D148: =IFERROR(VLOOKUP($C148,Vendors!C:D,2,0),"") ->  | G148: 0 | H148: 0 | J148: 0
D149: =IFERROR(VLOOKUP($C149,Vendors!C:D,2,0),"") ->  | G149: 0 | H149: 0 | J149: 0
D150: =IFERROR(VLOOKUP($C150,Vendors!C:D,2,0),"") ->  | G150: 0 | H150: 0 | J150: 0
D151: =IFERROR(VLOOKUP($C151,Vendors!C:D,2,0),"") ->  | G151: 0 | H151: 0 | J151: 0
D152: =IFERROR(VLOOKUP($C152,Vendors!C:D,2,0),"") ->  | G152: 0 | H152: 0 | J152: 0
D153: =IFERROR(VLOOKUP($C153,Vendors!C:D,2,0),"") ->  | G153: 0 | H153: 0 | J153: 0
D154: =IFERROR(VLOOKUP($C154,Vendors!C:D,2,0),"") ->  | G154: 0 | H154: 0 | J154: 0
D155: =IFERROR(VLOOKUP($C155,Vendors!C:D,2,0),"") ->  | G155: 0 | H155: 0 | J155: 0
D156: =IFERROR(VLOOKUP($C156,Vendors!C:D,2,0),"") ->  | G156: 0 | H156: 0 | J156: 0
D157: =IFERROR(VLOOKUP($C157,Vendors!C:D,2,0),"") ->  | G157: 0 | H157: 0 | J157: 0
D158: =IFERROR(VLOOKUP($C158,Vendors!C:D,2,0),"") ->  | G158: 0 | H158: 0 | J158: 0
D159: =IFERROR(VLOOKUP($C159,Vendors!C:D,2,0),"") ->  | G159: 0 | H159: 0 | J159: 0
D160: =IFERROR(VLOOKUP($C160,Vendors!C:D,2,0),"") ->  | G160: 0 | H160: 0 | J160: 0
D161: =IFERROR(VLOOKUP($C161,Vendors!C:D,2,0),"") ->  | G161: 0 | H161: 0 | J161: 0
D162: =IFERROR(VLOOKUP($C162,Vendors!C:D,2,0),"") ->  | G162: 0 | H162: 0 | J162: 0
D163: =IFERROR(VLOOKUP($C163,Vendors!C:D,2,0),"") ->  | G163: 0 | H163: 0 | J163: 0
D164: =IFERROR(VLOOKUP($C164,Vendors!C:D,2,0),"") ->  | G164: 0 | H164: 0 | J164: 0
D165: =IFERROR(VLOOKUP($C165,Vendors!C:D,2,0),"") ->  | G165: 0 | H165: 0 | J165: 0
D166: =IFERROR(VLOOKUP($C166,Vendors!C:D,2,0),"") ->  | G166: 0 | H166: 0 | J166: 0
D167: =IFERROR(VLOOKUP($C167,Vendors!C:D,2,0),"") ->  | G167: 0 | H167: 0 | J167: 0
D168: =IFERROR(VLOOKUP($C168,Vendors!C:D,2,0),"") ->  | G168: 0 | H168: 0 | J168: 0
D169: =IFERROR(VLOOKUP($C169,Vendors!C:D,2,0),"") ->  | G169: 0 | H169: 0 | J169: 0
D170: =IFERROR(VLOOKUP($C170,Vendors!C:D,2,0),"") ->  | G170: 0 | H170: 0 | J170: 0
D171: =IFERROR(VLOOKUP($C171,Vendors!C:D,2,0),"") ->  | G171: 0 | H171: 0 | J171: 0
D172: =IFERROR(VLOOKUP($C172,Vendors!C:D,2,0),"") ->  | G172: 0 | H172: 0 | J172: 0
D173: =IFERROR(VLOOKUP($C173,Vendors!C:D,2,0),"") ->  | G173: 0 | H173: 0 | J173: 0
D174: =IFERROR(VLOOKUP($C174,Vendors!C:D,2,0),"") ->  | G174: 0 | H174: 0 | J174: =H174-I174 -> 0
A175: إجمالى | E175: سلع محلية | F175: =SUMIF(E11:E174,E175,F11:F174) -> 0 | G175: =F175*5% -> 0 | H175: =F175+G175 -> 0 | I175: =SUMIF(E11:E174,E175,I11:I174) -> 0 | J175: =H175-I175 -> 0
E176: سلع محلية | F176: 542 | G176: 27.1 | H176: =F176+G176 -> 569.1 | I176: 452 | J176: =H176-I176 -> 117.1
E177: سلع مستوردة | F177: =SUMIF(E13:E176,E177,F13:F176) -> 0 | G177: 0 | H177: 0 | I177: =SUMIF(E13:E176,E177,I13:I176) -> 0 | J177: 0
E178: خدمات مستوردة | F178: 0 | G178: 0 | H178: 0 | I178: 0 | J178: 0
E179: الات ومعدات محلية | F179: 0 | G179: 0 | H179: 0 | I179: 0 | J179: 0
E180: الات ومعدات مستوردة | F180: 0 | G180: 0 | H180: 0 | I180: 0 | J180: 0

Sheet Purchase(3)
C4: رقم التسجيل الضريبي
C6: العنوان
A8: عدد فواتير المشتريات | B8: =COUNT($A$11:$A$500) -> 2 | D8: تحليل مشتريات | F8: مارس
A10: التاريخ | B10: رقم الفاتورة | C10: المورد | D10: الرقم الضريبي | E10: نوع العملية | F10: قيمة المشتريات | G10: ض . ق . م | H10: اجمالى | I10: خصم من المنبع | J10: الصافى
A11: 2018-03-01 | B11: 563 | C11: teka | D11: 100300600500400 | E11: سلع محلية | F11: 63 | G11: =IF(E11="الات ومعدات محلية",F11*5%,IF(E11="الات ومعدات مستوردة",F11*5%,IF(E11="",F11*0,F11*5%))) -> 3.15 | H11: =F11+G11 -> 66.15 | J11: =H11-I11 -> 66.15
A12: 2018-03-28 | B12: 452 | C12: teka | D12: 100300600500400 | E12: سلع محلية | F12: 452 | G12: 22.6 | H12: 474.6 | J12: 474.6
D13: =IFERROR(VLOOKUP($C13,Vendors!C:D,2,0),"") ->  | G13: 0 | H13: 0 | J13: 0
D14: =IFERROR(VLOOKUP($C14,Vendors!C:D,2,0),"") ->  | G14: 0 | H14: 0 | J14: 0
D15: =IFERROR(VLOOKUP($C15,Vendors!C:D,2,0),"") ->  | G15: 0 | H15: 0 | J15: 0
D16: =IFERROR(VLOOKUP($C16,Vendors!C:D,2,0),"") ->  | G16: 0 | H16: 0 | J16: 0
D17: =IFERROR(VLOOKUP($C17,Vendors!C:D,2,0),"") ->  | G17: 0 | H17: 0 | J17: 0
D18: =IFERROR(VLOOKUP($C18,Vendors!C:D,2,0),"") ->  | G18: 0 | H18: 0 | J18: 0
D19: =IFERROR(VLOOKUP($C19,Vendors!C:D,2,0),"") ->  | G19: 0 | H19: 0 | J19: 0
D20: =IFERROR(VLOOKUP($C20,Vendors!C:D,2,0),"") ->  | G20: 0 | H20: 0 | J20: 0
D21: =IFERROR(VLOOKUP($C21,Vendors!C:D,2,0),"") ->  | G21: 0 | H21: 0 | J21: 0
D22: =IFERROR(VLOOKUP($C22,Vendors!C:D,2,0),"") ->  | G22: 0 | H22: 0 | J22: 0
D23: =IFERROR(VLOOKUP($C23,Vendors!C:D,2,0),"") ->  | G23: 0 | H23: 0 | J23: 0
D24: =IFERROR(VLOOKUP($C24,Vendors!C:D,2,0),"") ->  | G24: 0 | H24: 0 | J24: 0
D25: =IFERROR(VLOOKUP($C25,Vendors!C:D,2,0),"") ->  | G25: 0 | H25: 0 | J25: 0
D26: =IFERROR(VLOOKUP($C26,Vendors!C:D,2,0),"") ->  | G26: 0 | H26: 0 | J26: 0
D27: =IFERROR(VLOOKUP($C27,Vendors!C:D,2,0),"") ->  | G27: 0 | H27: 0 | J27: 0
D28: =IFERROR(VLOOKUP($C28,Vendors!C:D,2,0),"") ->  | G28: 0 | H28: 0 | J28: 0
D29: =IFERROR(VLOOKUP($C29,Vendors!C:D,2,0),"") ->  | G29: 0 | H29: 0 | J29: 0
D30: =IFERROR(VLOOKUP($C30,Vendors!C:D,2,0),"") ->  | G30: 0 | H30: 0 | J30: 0
D31: =IFERROR(VLOOKUP($C31,Vendors!C:D,2,0),"") ->  | G31: 0 | H31: 0 | J31: 0
D32: =IFERROR(VLOOKUP($C32,Vendors!C:D,2,0),"") ->  | G32: 0 | H32: 0 | J32: 0
D33: =IFERROR(VLOOKUP($C33,Vendors!C:D,2,0),"") ->  | G33: 0 | H33: 0 | J33: 0
D34: =IFERROR(VLOOKUP($C34,Vendors!C:D,2,0),"") ->  | G34: 0 | H34: 0 | J34: 0
D35: =IFERROR(VLOOKUP($C35,Vendors!C:D,2,0),"") ->  | G35: 0 | H35: 0 | J35: 0
D36: =IFERROR(VLOOKUP($C36,Vendors!C:D,2,0),"") ->  | G36: 0 | H36: 0 | J36: 0
D37: =IFERROR(VLOOKUP($C37,Vendors!C:D,2,0),"") ->  | G37: 0 | H37: 0 | J37: 0
D38: =IFERROR(VLOOKUP($C38,Vendors!C:D,2,0),"") ->  | G38: 0 | H38: 0 | J38: 0
D39: =IFERROR(VLOOKUP($C39,Vendors!C:D,2,0),"") ->  | G39: 0 | H39: 0 | J39: 0
D40: =IFERROR(VLOOKUP($C40,Vendors!C:D,2,0),"") ->  | G40: 0 | H40: 0 | J40: 0
D41: =IFERROR(VLOOKUP($C41,Vendors!C:D,2,0),"") ->  | G41: 0 | H41: 0 | J41: 0
D42: =IFERROR(VLOOKUP($C42,Vendors!C:D,2,0),"") ->  | G42: 0 | H42: 0 | J42: 0
D43: =IFERROR(VLOOKUP($C43,Vendors!C:D,2,0),"") ->  | G43: 0 | H43: 0 | J43: 0
D44: =IFERROR(VLOOKUP($C44,Vendors!C:D,2,0),"") ->  | G44: 0 | H44: 0 | J44: 0
D45: =IFERROR(VLOOKUP($C45,Vendors!C:D,2,0),"") ->  | G45: 0 | H45: 0 | J45: 0
D46: =IFERROR(VLOOKUP($C46,Vendors!C:D,2,0),"") ->  | G46: 0 | H46: 0 | J46: 0
D47: =IFERROR(VLOOKUP($C47,Vendors!C:D,2,0),"") ->  | G47: 0 | H47: 0 | J47: 0
D48: =IFERROR(VLOOKUP($C48,Vendors!C:D,2,0),"") ->  | G48: 0 | H48: 0 | J48: 0
D49: =IFERROR(VLOOKUP($C49,Vendors!C:D,2,0),"") ->  | G49: 0 | H49: 0 | J49: 0
D50: =IFERROR(VLOOKUP($C50,Vendors!C:D,2,0),"") ->  | G50: 0 | H50: 0 | J50: 0
D51: =IFERROR(VLOOKUP($C51,Vendors!C:D,2,0),"") ->  | G51: 0 | H51: 0 | J51: 0
D52: =IFERROR(VLOOKUP($C52,Vendors!C:D,2,0),"") ->  | G52: 0 | H52: 0 | J52: 0
D53: =IFERROR(VLOOKUP($C53,Vendors!C:D,2,0),"") ->  | G53: 0 | H53: 0 | J53: 0
D54: =IFERROR(VLOOKUP($C54,Vendors!C:D,2,0),"") ->  | G54: 0 | H54: 0 | J54: 0
D55: =IFERROR(VLOOKUP($C55,Vendors!C:D,2,0),"") ->  | G55: 0 | H55: 0 | J55: 0
D56: =IFERROR(VLOOKUP($C56,Vendors!C:D,2,0),"") ->  | G56: 0 | H56: 0 | J56: 0
D57: =IFERROR(VLOOKUP($C57,Vendors!C:D,2,0),"") ->  | G57: 0 | H57: 0 | J57: 0
D58: =IFERROR(VLOOKUP($C58,Vendors!C:D,2,0),"") ->  | G58: 0 | H58: 0 | J58: 0
D59: =IFERROR(VLOOKUP($C59,Vendors!C:D,2,0),"") ->  | G59: 0 | H59: 0 | J59: 0
D60: =IFERROR(VLOOKUP($C60,Vendors!C:D,2,0),"") ->  | G60: 0 | H60: 0 | J60: 0
D61: =IFERROR(VLOOKUP($C61,Vendors!C:D,2,0),"") ->  | G61: 0 | H61: 0 | J61: 0
D62: =IFERROR(VLOOKUP($C62,Vendors!C:D,2,0),"") ->  | G62: 0 | H62: 0 | J62: 0
D63: =IFERROR(VLOOKUP($C63,Vendors!C:D,2,0),"") ->  | G63: 0 | H63: 0 | J63: 0
D64: =IFERROR(VLOOKUP($C64,Vendors!C:D,2,0),"") ->  | G64: 0 | H64: 0 | J64: 0
D65: =IFERROR(VLOOKUP($C65,Vendors!C:D,2,0),"") ->  | G65: 0 | H65: 0 | J65: 0
D66: =IFERROR(VLOOKUP($C66,Vendors!C:D,2,0),"") ->  | G66: 0 | H66: 0 | J66: 0
D67: =IFERROR(VLOOKUP($C67,Vendors!C:D,2,0),"") ->  | G67: 0 | H67: 0 | J67: 0
D68: =IFERROR(VLOOKUP($C68,Vendors!C:D,2,0),"") ->  | G68: 0 | H68: 0 | J68: 0
D69: =IFERROR(VLOOKUP($C69,Vendors!C:D,2,0),"") ->  | G69: 0 | H69: 0 | J69: 0
D70: =IFERROR(VLOOKUP($C70,Vendors!C:D,2,0),"") ->  | G70: 0 | H70: 0 | J70: 0
D71: =IFERROR(VLOOKUP($C71,Vendors!C:D,2,0),"") ->  | G71: 0 | H71: 0 | J71: 0
D72: =IFERROR(VLOOKUP($C72,Vendors!C:D,2,0),"") ->  | G72: 0 | H72: 0 | J72: 0
D73: =IFERROR(VLOOKUP($C73,Vendors!C:D,2,0),"") ->  | G73: 0 | H73: 0 | J73: 0
D74: =IFERROR(VLOOKUP($C74,Vendors!C:D,2,0),"") ->  | G74: 0 | H74: 0 | J74: 0
D75: =IFERROR(VLOOKUP($C75,Vendors!C:D,2,0),"") ->  | G75: =IF(E75="الات ومعدات محلية",F75*5%,IF(E75="الات ومعدات مستوردة",F75*5%,IF(E75="",F75*0,F75*5%))) -> 0 | H75: =F75+G75 -> 0 | J75: =H75-I75 -> 0
D76: =IFERROR(VLOOKUP($C76,Vendors!C:D,2,0),"") ->  | G76: 0 | H76: 0 | J76: 0
D77: =IFERROR(VLOOKUP($C77,Vendors!C:D,2,0),"") ->  | G77: 0 | H77: 0 | J77: 0
D78: =IFERROR(VLOOKUP($C78,Vendors!C:D,2,0),"") ->  | G78: 0 | H78: 0 | J78: 0
D79: =IFERROR(VLOOKUP($C79,Vendors!C:D,2,0),"") ->  | G79: 0 | H79: 0 | J79: 0
D80: =IFERROR(VLOOKUP($C80,Vendors!C:D,2,0),"") ->  | G80: 0 | H80: 0 | J80: 0
D81: =IFERROR(VLOOKUP($C81,Vendors!C:D,2,0),"") ->  | G81: 0 | H81: 0 | J81: 0
D82: =IFERROR(VLOOKUP($C82,Vendors!C:D,2,0),"") ->  | G82: 0 | H82: 0 | J82: 0
D83: =IFERROR(VLOOKUP($C83,Vendors!C:D,2,0),"") ->  | G83: 0 | H83: 0 | J83: 0
D84: =IFERROR(VLOOKUP($C84,Vendors!C:D,2,0),"") ->  | G84: 0 | H84: 0 | J84: 0
D85: =IFERROR(VLOOKUP($C85,Vendors!C:D,2,0),"") ->  | G85: 0 | H85: 0 | J85: 0
D86: =IFERROR(VLOOKUP($C86,Vendors!C:D,2,0),"") ->  | G86: 0 | H86: 0 | J86: 0
D87: =IFERROR(VLOOKUP($C87,Vendors!C:D,2,0),"") ->  | G87: 0 | H87: 0 | J87: 0
D88: =IFERROR(VLOOKUP($C88,Vendors!C:D,2,0),"") ->  | G88: 0 | H88: 0 | J88: 0
D89: =IFERROR(VLOOKUP($C89,Vendors!C:D,2,0),"") ->  | G89: 0 | H89: 0 | J89: 0
D90: =IFERROR(VLOOKUP($C90,Vendors!C:D,2,0),"") ->  | G90: 0 | H90: 0 | J90: 0
D91: =IFERROR(VLOOKUP($C91,Vendors!C:D,2,0),"") ->  | G91: 0 | H91: 0 | J91: 0
D92: =IFERROR(VLOOKUP($C92,Vendors!C:D,2,0),"") ->  | G92: 0 | H92: 0 | J92: 0
D93: =IFERROR(VLOOKUP($C93,Vendors!C:D,2,0),"") ->  | G93: 0 | H93: 0 | J93: 0
D94: =IFERROR(VLOOKUP($C94,Vendors!C:D,2,0),"") ->  | G94: 0 | H94: 0 | J94: 0
D95: =IFERROR(VLOOKUP($C95,Vendors!C:D,2,0),"") ->  | G95: 0 | H95: 0 | J95: 0
D96: =IFERROR(VLOOKUP($C96,Vendors!C:D,2,0),"") ->  | G96: 0 | H96: 0 | J96: 0
D97: =IFERROR(VLOOKUP($C97,Vendors!C:D,2,0),"") ->  | G97: 0 | H97: 0 | J97: 0
D98: =IFERROR(VLOOKUP($C98,Vendors!C:D,2,0),"") ->  | G98: 0 | H98: 0 | J98: 0
D99: =IFERROR(VLOOKUP($C99,Vendors!C:D,2,0),"") ->  | G99: 0 | H99: 0 | J99: 0
D100: =IFERROR(VLOOKUP($C100,Vendors!C:D,2,0),"") ->  | G100: 0 | H100: 0 | J100: 0
D101: =IFERROR(VLOOKUP($C101,Vendors!C:D,2,0),"") ->  | G101: 0 | H101: 0 | J101: 0
D102: =IFERROR(VLOOKUP($C102,Vendors!C:D,2,0),"") ->  | G102: 0 | H102: 0 | J102: 0
D103: =IFERROR(VLOOKUP($C103,Vendors!C:D,2,0),"") ->  | G103: 0 | H103: 0 | J103: 0
D104: =IFERROR(VLOOKUP($C104,Vendors!C:D,2,0),"") ->  | G104: 0 | H104: 0 | J104: 0
D105: =IFERROR(VLOOKUP($C105,Vendors!C:D,2,0),"") ->  | G105: 0 | H105: 0 | J105: 0
D106: =IFERROR(VLOOKUP($C106,Vendors!C:D,2,0),"") ->  | G106: 0 | H106: 0 | J106: 0
D107: =IFERROR(VLOOKUP($C107,Vendors!C:D,2,0),"") ->  | G107: 0 | H107: 0 | J107: 0
D108: =IFERROR(VLOOKUP($C108,Vendors!C:D,2,0),"") ->  | G108: 0 | H108: 0 | J108: 0
D109: =IFERROR(VLOOKUP($C109,Vendors!C:D,2,0),"") ->  | G109: 0 | H109: 0 | J109: 0
D110: =IFERROR(VLOOKUP($C110,Vendors!C:D,2,0),"") ->  | G110: 0 | H110: 0 | J110: 0
D111: =IFERROR(VLOOKUP($C111,Vendors!C:D,2,0),"") ->  | G111: 0 | H111: 0 | J111: 0
D112: =IFERROR(VLOOKUP($C112,Vendors!C:D,2,0),"") ->  | G112: 0 | H112: 0 | J112: 0
D113: =IFERROR(VLOOKUP($C113,Vendors!C:D,2,0),"") ->  | G113: 0 | H113: 0 | J113: 0
D114: =IFERROR(VLOOKUP($C114,Vendors!C:D,2,0),"") ->  | G114: 0 | H114: 0 | J114: 0
D115: =IFERROR(VLOOKUP($C115,Vendors!C:D,2,0),"") ->  | G115: 0 | H115: 0 | J115: 0
D116: =IFERROR(VLOOKUP($C116,Vendors!C:D,2,0),"") ->  | G116: 0 | H116: 0 | J116: 0
D117: =IFERROR(VLOOKUP($C117,Vendors!C:D,2,0),"") ->  | G117: 0 | H117: 0 | J117: 0
D118: =IFERROR(VLOOKUP($C118,Vendors!C:D,2,0),"") ->  | G118: 0 | H118: 0 | J118: 0
D119: =IFERROR(VLOOKUP($C119,Vendors!C:D,2,0),"") ->  | G119: 0 | H119: 0 | J119: 0
D120: =IFERROR(VLOOKUP($C120,Vendors!C:D,2,0),"") ->  | G120: 0 | H120: 0 | J120: 0
D121: =IFERROR(VLOOKUP($C121,Vendors!C:D,2,0),"") ->  | G121: 0 | H121: 0 | J121: 0
D122: =IFERROR(VLOOKUP($C122,Vendors!C:D,2,0),"") ->  | G122: 0 | H122: 0 | J122: 0
D123: =IFERROR(VLOOKUP($C123,Vendors!C:D,2,0),"") ->  | G123: 0 | H123: 0 | J123: 0
D124: =IFERROR(VLOOKUP($C124,Vendors!C:D,2,0),"") ->  | G124: 0 | H124: 0 | J124: 0
D125: =IFERROR(VLOOKUP($C125,Vendors!C:D,2,0),"") ->  | G125: 0 | H125: 0 | J125: 0
D126: =IFERROR(VLOOKUP($C126,Vendors!C:D,2,0),"") ->  | G126: 0 | H126: 0 | J126: 0
D127: =IFERROR(VLOOKUP($C127,Vendors!C:D,2,0),"") ->  | G127: 0 | H127: 0 | J127: 0
D128: =IFERROR(VLOOKUP($C128,Vendors!C:D,2,0),"") ->  | G128: 0 | H128: 0 | J128: 0
D129: =IFERROR(VLOOKUP($C129,Vendors!C:D,2,0),"") ->  | G129: 0 | H129: 0 | J129: 0
D130: =IFERROR(VLOOKUP($C130,Vendors!C:D,2,0),"") ->  | G130: 0 | H130: 0 | J130: 0
D131: =IFERROR(VLOOKUP($C131,Vendors!C:D,2,0),"") ->  | G131: 0 | H131: 0 | J131: 0
D132: =IFERROR(VLOOKUP($C132,Vendors!C:D,2,0),"") ->  | G132: 0 | H132: 0 | J132: 0
D133: =IFERROR(VLOOKUP($C133,Vendors!C:D,2,0),"") ->  | G133: 0 | H133: 0 | J133: 0
D134: =IFERROR(VLOOKUP($C134,Vendors!C:D,2,0),"") ->  | G134: 0 | H134: 0 | J134: 0
D135: =IFERROR(VLOOKUP($C135,Vendors!C:D,2,0),"") ->  | G135: 0 | H135: 0 | J135: 0
D136: =IFERROR(VLOOKUP($C136,Vendors!C:D,2,0),"") ->  | G136: 0 | H136: 0 | J136: 0
D137: =IFERROR(VLOOKUP($C137,Vendors!C:D,2,0),"") ->  | G137: 0 | H137: 0 | J137: 0
D138: =IFERROR(VLOOKUP($C138,Vendors!C:D,2,0),"") ->  | G138: 0 | H138: 0 | J138: 0
D139: =IFERROR(VLOOKUP($C139,Vendors!C:D,2,0),"") ->  | G139: =IF(E139="الات ومعدات محلية",F139*5%,IF(E139="الات ومعدات مستوردة",F139*5%,IF(E139="",F139*0,F139*5%))) -> 0 | H139: =F139+G139 -> 0 | J139: =H139-I139 -> 0
D140: =IFERROR(VLOOKUP($C140,Vendors!C:D,2,0),"") ->  | G140: 0 | H140: 0 | J140: 0
D141: =IFERROR(VLOOKUP($C141,Vendors!C:D,2,0),"") ->  | G141: 0 | H141: 0 | J141: 0
D142: =IFERROR(VLOOKUP($C142,Vendors!C:D,2,0),"") ->  | G142: 0 | H142: 0 | J142: 0
D143: =IFERROR(VLOOKUP($C143,Vendors!C:D,2,0),"") ->  | G143: 0 | H143: 0 | J143: 0
D144: =IFERROR(VLOOKUP($C144,Vendors!C:D,2,0),"") ->  | G144: 0 | H144: 0 | J144: 0
D145: =IFERROR(VLOOKUP($C145,Vendors!C:D,2,0),"") ->  | G145: 0 | H145: 0 | J145: 0
D146: =IFERROR(VLOOKUP($C146,Vendors!C:D,2,0),"") ->  | G146: 0 | H146: 0 | J146: 0
D147: =IFERROR(VLOOKUP($C147,Vendors!C:D,2,0),"") ->  | G147: 0 | H147: 0 | J147: 0
D148: =IFERROR(VLOOKUP($C148,Vendors!C:D,2,0),"") ->  | G148: 0 | H148: 0 | J148: 0
D149: =IFERROR(VLOOKUP($C149,Vendors!C:D,2,0),"") ->  | G149: 0 | H149: 0 | J149: 0
D150: =IFERROR(VLOOKUP($C150,Vendors!C:D,2,0),"") ->  | G150: 0 | H150: 0 | J150: 0
D151: =IFERROR(VLOOKUP($C151,Vendors!C:D,2,0),"") ->  | G151: 0 | H151: 0 | J151: 0
D152: =IFERROR(VLOOKUP($C152,Vendors!C:D,2,0),"") ->  | G152: 0 | H152: 0 | J152: 0
D153: =IFERROR(VLOOKUP($C153,Vendors!C:D,2,0),"") ->  | G153: 0 | H153: 0 | J153: 0
D154: =IFERROR(VLOOKUP($C154,Vendors!C:D,2,0),"") ->  | G154: 0 | H154: 0 | J154: 0
D155: =IFERROR(VLOOKUP($C155,Vendors!C:D,2,0),"") ->  | G155: 0 | H155: 0 | J155: 0
D156: =IFERROR(VLOOKUP($C156,Vendors!C:D,2,0),"") ->  | G156: 0 | H156: 0 | J156: 0
D157: =IFERROR(VLOOKUP($C157,Vendors!C:D,2,0),"") ->  | G157: 0 | H157: 0 | J157: 0
D158: =IFERROR(VLOOKUP($C158,Vendors!C:D,2,0),"") ->  | G158: 0 | H158: 0 | J158: 0
D159: =IFERROR(VLOOKUP($C159,Vendors!C:D,2,0),"") ->  | G159: 0 | H159: 0 | J159: 0
D160: =IFERROR(VLOOKUP($C160,Vendors!C:D,2,0),"") ->  | G160: 0 | H160: 0 | J160: 0
D161: =IFERROR(VLOOKUP($C161,Vendors!C:D,2,0),"") ->  | G161: 0 | H161: 0 | J161: 0
D162: =IFERROR(VLOOKUP($C162,Vendors!C:D,2,0),"") ->  | G162: 0 | H162: 0 | J162: 0
D163: =IFERROR(VLOOKUP($C163,Vendors!C:D,2,0),"") ->  | G163: 0 | H163: 0 | J163: 0
D164: =IFERROR(VLOOKUP($C164,Vendors!C:D,2,0),"") ->  | G164: 0 | H164: 0 | J164: 0
D165: =IFERROR(VLOOKUP($C165,Vendors!C:D,2,0),"") ->  | G165: 0 | H165: 0 | J165: 0
D166: =IFERROR(VLOOKUP($C166,Vendors!C:D,2,0),"") ->  | G166: 0 | H166: 0 | J166: 0
D167: =IFERROR(VLOOKUP($C167,Vendors!C:D,2,0),"") ->  | G167: 0 | H167: 0 | J167: 0
D168: =IFERROR(VLOOKUP($C168,Vendors!C:D,2,0),"") ->  | G168: 0 | H168: 0 | J168: 0
D169: =IFERROR(VLOOKUP($C169,Vendors!C:D,2,0),"") ->  | G169: 0 | H169: 0 | J169: 0
D170: =IFERROR(VLOOKUP($C170,Vendors!C:D,2,0),"") ->  | G170: 0 | H170: 0 | J170: 0
D171: =IFERROR(VLOOKUP($C171,Vendors!C:D,2,0),"") ->  | G171: 0 | H171: 0 | J171: 0
D172: =IFERROR(VLOOKUP($C172,Vendors!C:D,2,0),"") ->  | G172: 0 | H172: 0 | J172: 0
D173: =IFERROR(VLOOKUP($C173,Vendors!C:D,2,0),"") ->  | G173: 0 | H173: 0 | J173: 0
D174: =IFERROR(VLOOKUP($C174,Vendors!C:D,2,0),"") ->  | G174: 0 | H174: 0 | J174: =H174-I174 -> 0
A175: إجمالى | E175: سلع محلية | F175: =SUMIF(E11:E174,E175,F11:F174) -> 515 | G175: =F175*5% -> 25.75 | H175: =F175+G175 -> 540.75 | I175: =SUMIF(E11:E174,E175,I11:I174) -> 0 | J175: =H175-I175 -> 540.75
E176: خدمات محلية | F176: =SUMIF(E12:E175,E176,F12:F175) -> 0 | G176: 0 | H176: =F176+G176 -> 0 | I176: =SUMIF(E12:E175,E176,I12:I175) -> 0 | J176: =H176-I176 -> 0
E177: سلع مستوردة | F177: 0 | G177: 0 | H177: 0 | I177: 0 | J177: 0
E178: خدمات مستوردة | F178: 0 | G178: 0 | H178: 0 | I178: 0 | J178: 0
E179: الات ومعدات محلية | F179: 0 | G179: 0 | H179: 0 | I179: 0 | J179: 0
E180: الات ومعدات مستوردة | F180: 0 | G180: 0 | H180: 0 | I180: 0 | J180: 0

Sheet Purchase(4)
C4: رقم التسجيل الضريبي
C6: العنوان
A8: عدد فواتير المشتريات | B8: =COUNT($A$11:$A$500) -> 0 | D8: تحليل مشتريات | F8: ابريل
A10: التاريخ | B10: رقم الفاتورة | C10: المورد | D10: الرقم الضريبي | E10: نوع العملية | F10: قيمة المشتريات | G10: ض . ق . م | H10: اجمالى | I10: خصم من المنبع | J10: الصافى
D11: =IFERROR(VLOOKUP($C11,Vendors!C:D,2,0),"") ->  | G11: =IF(E11="الات ومعدات محلية",F11*5%,IF(E11="الات ومعدات مستوردة",F11*5%,IF(E11="",F11*0,F11*5%))) -> 0 | H11: =F11+G11 -> 0 | J11: =H11-I11 -> 0
D12: =IFERROR(VLOOKUP($C12,Vendors!C:D,2,0),"") ->  | G12: 0 | H12: 0 | J12: 0
D13: =IFERROR(VLOOKUP($C13,Vendors!C:D,2,0),"") ->  | G13: 0 | H13: 0 | J13: 0
D14: =IFERROR(VLOOKUP($C14,Vendors!C:D,2,0),"") ->  | G14: 0 | H14: 0 | J14: 0
D15: =IFERROR(VLOOKUP($C15,Vendors!C:D,2,0),"") ->  | G15: 0 | H15: 0 | J15: 0
D16: =IFERROR(VLOOKUP($C16,Vendors!C:D,2,0),"") ->  | G16: 0 | H16: 0 | J16: 0
D17: =IFERROR(VLOOKUP($C17,Vendors!C:D,2,0),"") ->  | G17: 0 | H17: 0 | J17: 0
D18: =IFERROR(VLOOKUP($C18,Vendors!C:D,2,0),"") ->  | G18: 0 | H18: 0 | J18: 0
D19: =IFERROR(VLOOKUP($C19,Vendors!C:D,2,0),"") ->  | G19: 0 | H19: 0 | J19: 0
D20: =IFERROR(VLOOKUP($C20,Vendors!C:D,2,0),"") ->  | G20: 0 | H20: 0 | J20: 0
D21: =IFERROR(VLOOKUP($C21,Vendors!C:D,2,0),"") ->  | G21: 0 | H21: 0 | J21: 0
D22: =IFERROR(VLOOKUP($C22,Vendors!C:D,2,0),"") ->  | G22: 0 | H22: 0 | J22: 0
D23: =IFERROR(VLOOKUP($C23,Vendors!C:D,2,0),"") ->  | G23: 0 | H23: 0 | J23: 0
D24: =IFERROR(VLOOKUP($C24,Vendors!C:D,2,0),"") ->  | G24: 0 | H24: 0 | J24: 0
D25: =IFERROR(VLOOKUP($C25,Vendors!C:D,2,0),"") ->  | G25: 0 | H25: 0 | J25: 0
D26: =IFERROR(VLOOKUP($C26,Vendors!C:D,2,0),"") ->  | G26: 0 | H26: 0 | J26: 0
D27: =IFERROR(VLOOKUP($C27,Vendors!C:D,2,0),"") ->  | G27: 0 | H27: 0 | J27: 0
D28: =IFERROR(VLOOKUP($C28,Vendors!C:D,2,0),"") ->  | G28: 0 | H28: 0 | J28: 0
D29: =IFERROR(VLOOKUP($C29,Vendors!C:D,2,0),"") ->  | G29: 0 | H29: 0 | J29: 0
D30: =IFERROR(VLOOKUP($C30,Vendors!C:D,2,0),"") ->  | G30: 0 | H30: 0 | J30: 0
D31: =IFERROR(VLOOKUP($C31,Vendors!C:D,2,0),"") ->  | G31: 0 | H31: 0 | J31: 0
D32: =IFERROR(VLOOKUP($C32,Vendors!C:D,2,0),"") ->  | G32: 0 | H32: 0 | J32: 0
D33: =IFERROR(VLOOKUP($C33,Vendors!C:D,2,0),"") ->  | G33: 0 | H33: 0 | J33: 0
D34: =IFERROR(VLOOKUP($C34,Vendors!C:D,2,0),"") ->  | G34: 0 | H34: 0 | J34: 0
D35: =IFERROR(VLOOKUP($C35,Vendors!C:D,2,0),"") ->  | G35: 0 | H35: 0 | J35: 0
D36: =IFERROR(VLOOKUP($C36,Vendors!C:D,2,0),"") ->  | G36: 0 | H36: 0 | J36: 0
D37: =IFERROR(VLOOKUP($C37,Vendors!C:D,2,0),"") ->  | G37: 0 | H37: 0 | J37: 0
D38: =IFERROR(VLOOKUP($C38,Vendors!C:D,2,0),"") ->  | G38: 0 | H38: 0 | J38: 0
D39: =IFERROR(VLOOKUP($C39,Vendors!C:D,2,0),"") ->  | G39: 0 | H39: 0 | J39: 0
D40: =IFERROR(VLOOKUP($C40,Vendors!C:D,2,0),"") ->  | G40: 0 | H40: 0 | J40: 0
D41: =IFERROR(VLOOKUP($C41,Vendors!C:D,2,0),"") ->  | G41: 0 | H41: 0 | J41: 0
D42: =IFERROR(VLOOKUP($C42,Vendors!C:D,2,0),"") ->  | G42: 0 | H42: 0 | J42: 0
D43: =IFERROR(VLOOKUP($C43,Vendors!C:D,2,0),"") ->  | G43: 0 | H43: 0 | J43: 0
D44: =IFERROR(VLOOKUP($C44,Vendors!C:D,2,0),"") ->  | G44: 0 | H44: 0 | J44: 0
D45: =IFERROR(VLOOKUP($C45,Vendors!C:D,2,0),"") ->  | G45: 0 | H45: 0 | J45: 0
D46: =IFERROR(VLOOKUP($C46,Vendors!C:D,2,0),"") ->  | G46: 0 | H46: 0 | J46: 0
D47: =IFERROR(VLOOKUP($C47,Vendors!C:D,2,0),"") ->  | G47: 0 | H47: 0 | J47: 0
D48: =IFERROR(VLOOKUP($C48,Vendors!C:D,2,0),"") ->  | G48: 0 | H48: 0 | J48: 0
D49: =IFERROR(VLOOKUP($C49,Vendors!C:D,2,0),"") ->  | G49: 0 | H49: 0 | J49: 0
D50: =IFERROR(VLOOKUP($C50,Vendors!C:D,2,0),"") ->  | G50: 0 | H50: 0 | J50: 0
D51: =IFERROR(VLOOKUP($C51,Vendors!C:D,2,0),"") ->  | G51: 0 | H51: 0 | J51: 0
D52: =IFERROR(VLOOKUP($C52,Vendors!C:D,2,0),"") ->  | G52: 0 | H52: 0 | J52: 0
D53: =IFERROR(VLOOKUP($C53,Vendors!C:D,2,0),"") ->  | G53: 0 | H53: 0 | J53: 0
D54: =IFERROR(VLOOKUP($C54,Vendors!C:D,2,0),"") ->  | G54: 0 | H54: 0 | J54: 0
D55: =IFERROR(VLOOKUP($C55,Vendors!C:D,2,0),"") ->  | G55: 0 | H55: 0 | J55: 0
D56: =IFERROR(VLOOKUP($C56,Vendors!C:D,2,0),"") ->  | G56: 0 | H56: 0 | J56: 0
D57: =IFERROR(VLOOKUP($C57,Vendors!C:D,2,0),"") ->  | G57: 0 | H57: 0 | J57: 0
D58: =IFERROR(VLOOKUP($C58,Vendors!C:D,2,0),"") ->  | G58: 0 | H58: 0 | J58: 0
D59: =IFERROR(VLOOKUP($C59,Vendors!C:D,2,0),"") ->  | G59: 0 | H59: 0 | J59: 0
D60: =IFERROR(VLOOKUP($C60,Vendors!C:D,2,0),"") ->  | G60: 0 | H60: 0 | J60: 0
D61: =IFERROR(VLOOKUP($C61,Vendors!C:D,2,0),"") ->  | G61: 0 | H61: 0 | J61: 0
D62: =IFERROR(VLOOKUP($C62,Vendors!C:D,2,0),"") ->  | G62: 0 | H62: 0 | J62: 0
D63: =IFERROR(VLOOKUP($C63,Vendors!C:D,2,0),"") ->  | G63: 0 | H63: 0 | J63: 0
D64: =IFERROR(VLOOKUP($C64,Vendors!C:D,2,0),"") ->  | G64: 0 | H64: 0 | J64: 0
D65: =IFERROR(VLOOKUP($C65,Vendors!C:D,2,0),"") ->  | G65: 0 | H65: 0 | J65: 0
D66: =IFERROR(VLOOKUP($C66,Vendors!C:D,2,0),"") ->  | G66: 0 | H66: 0 | J66: 0
D67: =IFERROR(VLOOKUP($C67,Vendors!C:D,2,0),"") ->  | G67: 0 | H67: 0 | J67: 0
D68: =IFERROR(VLOOKUP($C68,Vendors!C:D,2,0),"") ->  | G68: 0 | H68: 0 | J68: 0
D69: =IFERROR(VLOOKUP($C69,Vendors!C:D,2,0),"") ->  | G69: 0 | H69: 0 | J69: 0
D70: =IFERROR(VLOOKUP($C70,Vendors!C:D,2,0),"") ->  | G70: 0 | H70: 0 | J70: 0
D71: =IFERROR(VLOOKUP($C71,Vendors!C:D,2,0),"") ->  | G71: 0 | H71: 0 | J71: 0
D72: =IFERROR(VLOOKUP($C72,Vendors!C:D,2,0),"") ->  | G72: 0 | H72: 0 | J72: 0
D73: =IFERROR(VLOOKUP($C73,Vendors!C:D,2,0),"") ->  | G73: 0 | H73: 0 | J73: 0
D74: =IFERROR(VLOOKUP($C74,Vendors!C:D,2,0),"") ->  | G74: 0 | H74: 0 | J74: 0
D75: =IFERROR(VLOOKUP($C75,Vendors!C:D,2,0),"") ->  | G75: =IF(E75="الات ومعدات محلية",F75*5%,IF(E75="الات ومعدات مستوردة",F75*5%,IF(E75="",F75*0,F75*5%))) -> 0 | H75: =F75+G75 -> 0 | J75: =H75-I75 -> 0
D76: =IFERROR(VLOOKUP($C76,Vendors!C:D,2,0),"") ->  | G76: 0 | H76: 0 | J76: 0
D77: =IFERROR(VLOOKUP($C77,Vendors!C:D,2,0),"") ->  | G77: 0 | H77: 0 | J77: 0
D78: =IFERROR(VLOOKUP($C78,Vendors!C:D,2,0),"") ->  | G78: 0 | H78: 0 | J78: 0
D79: =IFERROR(VLOOKUP($C79,Vendors!C:D,2,0),"") ->  | G79: 0 | H79: 0 | J79: 0
D80: =IFERROR(VLOOKUP($C80,Vendors!C:D,2,0),"") ->  | G80: 0 | H80: 0 | J80: 0
D81: =IFERROR(VLOOKUP($C81,Vendors!C:D,2,0),"") ->  | G81: 0 | H81: 0 | J81: 0
D82: =IFERROR(VLOOKUP($C82,Vendors!C:D,2,0),"") ->  | G82: 0 | H82: 0 | J82: 0
D83: =IFERROR(VLOOKUP($C83,Vendors!C:D,2,0),"") ->  | G83: 0 | H83: 0 | J83: 0
D84: =IFERROR(VLOOKUP($C84,Vendors!C:D,2,0),"") ->  | G84: 0 | H84: 0 | J84: 0
D85: =IFERROR(VLOOKUP($C85,Vendors!C:D,2,0),"") ->  | G85: 0 | H85: 0 | J85: 0
D86: =IFERROR(VLOOKUP($C86,Vendors!C:D,2,0),"") ->  | G86: 0 | H86: 0 | J86: 0
D87: =IFERROR(VLOOKUP($C87,Vendors!C:D,2,0),"") ->  | G87: 0 | H87: 0 | J87: 0
D88: =IFERROR(VLOOKUP($C88,Vendors!C:D,2,0),"") ->  | G88: 0 | H88: 0 | J88: 0
D89: =IFERROR(VLOOKUP($C89,Vendors!C:D,2,0),"") ->  | G89: 0 | H89: 0 | J89: 0
D90: =IFERROR(VLOOKUP($C90,Vendors!C:D,2,0),"") ->  | G90: 0 | H90: 0 | J90: 0
D91: =IFERROR(VLOOKUP($C91,Vendors!C:D,2,0),"") ->  | G91: 0 | H91: 0 | J91: 0
D92: =IFERROR(VLOOKUP($C92,Vendors!C:D,2,0),"") ->  | G92: 0 | H92: 0 | J92: 0
D93: =IFERROR(VLOOKUP($C93,Vendors!C:D,2,0),"") ->  | G93: 0 | H93: 0 | J93: 0
D94: =IFERROR(VLOOKUP($C94,Vendors!C:D,2,0),"") ->  | G94: 0 | H94: 0 | J94: 0
D95: =IFERROR(VLOOKUP($C95,Vendors!C:D,2,0),"") ->  | G95: 0 | H95: 0 | J95: 0
D96: =IFERROR(VLOOKUP($C96,Vendors!C:D,2,0),"") ->  | G96: 0 | H96: 0 | J96: 0
D97: =IFERROR(VLOOKUP($C97,Vendors!C:D,2,0),"") ->  | G97: 0 | H97: 0 | J97: 0
D98: =IFERROR(VLOOKUP($C98,Vendors!C:D,2,0),"") ->  | G98: 0 | H98: 0 | J98: 0
D99: =IFERROR(VLOOKUP($C99,Vendors!C:D,2,0),"") ->  | G99: 0 | H99: 0 | J99: 0
D100: =IFERROR(VLOOKUP($C100,Vendors!C:D,2,0),"") ->  | G100: 0 | H100: 0 | J100: 0
D101: =IFERROR(VLOOKUP($C101,Vendors!C:D,2,0),"") ->  | G101: 0 | H101: 0 | J101: 0
D102: =IFERROR(VLOOKUP($C102,Vendors!C:D,2,0),"") ->  | G102: 0 | H102: 0 | J102: 0
D103: =IFERROR(VLOOKUP($C103,Vendors!C:D,2,0),"") ->  | G103: 0 | H103: 0 | J103: 0
D104: =IFERROR(VLOOKUP($C104,Vendors!C:D,2,0),"") ->  | G104: 0 | H104: 0 | J104: 0
D105: =IFERROR(VLOOKUP($C105,Vendors!C:D,2,0),"") ->  | G105: 0 | H105: 0 | J105: 0
D106: =IFERROR(VLOOKUP($C106,Vendors!C:D,2,0),"") ->  | G106: 0 | H106: 0 | J106: 0
D107: =IFERROR(VLOOKUP($C107,Vendors!C:D,2,0),"") ->  | G107: 0 | H107: 0 | J107: 0
D108: =IFERROR(VLOOKUP($C108,Vendors!C:D,2,0),"") ->  | G108: 0 | H108: 0 | J108: 0
D109: =IFERROR(VLOOKUP($C109,Vendors!C:D,2,0),"") ->  | G109: 0 | H109: 0 | J109: 0
D110: =IFERROR(VLOOKUP($C110,Vendors!C:D,2,0),"") ->  | G110: 0 | H110: 0 | J110: 0
D111: =IFERROR(VLOOKUP($C111,Vendors!C:D,2,0),"") ->  | G111: 0 | H111: 0 | J111: 0
D112: =IFERROR(VLOOKUP($C112,Vendors!C:D,2,0),"") ->  | G112: 0 | H112: 0 | J112: 0
D113: =IFERROR(VLOOKUP($C113,Vendors!C:D,2,0),"") ->  | G113: 0 | H113: 0 | J113: 0
D114: =IFERROR(VLOOKUP($C114,Vendors!C:D,2,0),"") ->  | G114: 0 | H114: 0 | J114: 0
D115: =IFERROR(VLOOKUP($C115,Vendors!C:D,2,0),"") ->  | G115: 0 | H115: 0 | J115: 0
D116: =IFERROR(VLOOKUP($C116,Vendors!C:D,2,0),"") ->  | G116: 0 | H116: 0 | J116: 0
D117: =IFERROR(VLOOKUP($C117,Vendors!C:D,2,0),"") ->  | G117: 0 | H117: 0 | J117: 0
D118: =IFERROR(VLOOKUP($C118,Vendors!C:D,2,0),"") ->  | G118: 0 | H118: 0 | J118: 0
D119: =IFERROR(VLOOKUP($C119,Vendors!C:D,2,0),"") ->  | G119: 0 | H119: 0 | J119: 0
D120: =IFERROR(VLOOKUP($C120,Vendors!C:D,2,0),"") ->  | G120: 0 | H120: 0 | J120: 0
D121: =IFERROR(VLOOKUP($C121,Vendors!C:D,2,0),"") ->  | G121: 0 | H121: 0 | J121: 0
D122: =IFERROR(VLOOKUP($C122,Vendors!C:D,2,0),"") ->  | G122: 0 | H122: 0 | J122: 0
D123: =IFERROR(VLOOKUP($C123,Vendors!C:D,2,0),"") ->  | G123: 0 | H123: 0 | J123: 0
D124: =IFERROR(VLOOKUP($C124,Vendors!C:D,2,0),"") ->  | G124: 0 | H124: 0 | J124: 0
D125: =IFERROR(VLOOKUP($C125,Vendors!C:D,2,0),"") ->  | G125: 0 | H125: 0 | J125: 0
D126: =IFERROR(VLOOKUP($C126,Vendors!C:D,2,0),"") ->  | G126: 0 | H126: 0 | J126: 0
D127: =IFERROR(VLOOKUP($C127,Vendors!C:D,2,0),"") ->  | G127: 0 | H127: 0 | J127: 0
D128: =IFERROR(VLOOKUP($C128,Vendors!C:D,2,0),"") ->  | G128: 0 | H128: 0 | J128: 0
D129: =IFERROR(VLOOKUP($C129,Vendors!C:D,2,0),"") ->  | G129: 0 | H129: 0 | J129: 0
D130: =IFERROR(VLOOKUP($C130,Vendors!C:D,2,0),"") ->  | G130: 0 | H130: 0 | J130: 0
D131: =IFERROR(VLOOKUP($C131,Vendors!C:D,2,0),"") ->  | G131: 0 | H131: 0 | J131: 0
D132: =IFERROR(VLOOKUP($C132,Vendors!C:D,2,0),"") ->  | G132: 0 | H132: 0 | J132: 0
D133: =IFERROR(VLOOKUP($C133,Vendors!C:D,2,0),"") ->  | G133: 0 | H133: 0 | J133: 0
D134: =IFERROR(VLOOKUP($C134,Vendors!C:D,2,0),"") ->  | G134: 0 | H134: 0 | J134: 0
D135: =IFERROR(VLOOKUP($C135,Vendors!C:D,2,0),"") ->  | G135: 0 | H135: 0 | J135: 0
D136: =IFERROR(VLOOKUP($C136,Vendors!C:D,2,0),"") ->  | G136: 0 | H136: 0 | J136: 0
D137: =IFERROR(VLOOKUP($C137,Vendors!C:D,2,0),"") ->  | G137: 0 | H137: 0 | J137: 0
D138: =IFERROR(VLOOKUP($C138,Vendors!C:D,2,0),"") ->  | G138: 0 | H138: 0 | J138: 0
D139: =IFERROR(VLOOKUP($C139,Vendors!C:D,2,0),"") ->  | G139: =IF(E139="الات ومعدات محلية",F139*5%,IF(E139="الات ومعدات مستوردة",F139*5%,IF(E139="",F139*0,F139*5%))) -> 0 | H139: =F139+G139 -> 0 | J139: =H139-I139 -> 0
D140: =IFERROR(VLOOKUP($C140,Vendors!C:D,2,0),"") ->  | G140: 0 | H140: 0 | J140: 0
D141: =IFERROR(VLOOKUP($C141,Vendors!C:D,2,0),"") ->  | G141: 0 | H141: 0 | J141: 0
D142: =IFERROR(VLOOKUP($C142,Vendors!C:D,2,0),"") ->  | G142: 0 | H142: 0 | J142: 0
D143: =IFERROR(VLOOKUP($C143,Vendors!C:D,2,0),"") ->  | G143: 0 | H143: 0 | J143: 0
D144: =IFERROR(VLOOKUP($C144,Vendors!C:D,2,0),"") ->  | G144: 0 | H144: 0 | J144: 0
D145: =IFERROR(VLOOKUP($C145,Vendors!C:D,2,0),"") ->  | G145: 0 | H145: 0 | J145: 0
D146: =IFERROR(VLOOKUP($C146,Vendors!C:D,2,0),"") ->  | G146: 0 | H146: 0 | J146: 0
D147: =IFERROR(VLOOKUP($C147,Vendors!C:D,2,0),"") ->  | G147: 0 | H147: 0 | J147: 0
D148: =IFERROR(VLOOKUP($C148,Vendors!C:D,2,0),"") ->  | G148: 0 | H148: 0 | J148: 0
D149: =IFERROR(VLOOKUP($C149,Vendors!C:D,2,0),"") ->  | G149: 0 | H149: 0 | J149: 0
D150: =IFERROR(VLOOKUP($C150,Vendors!C:D,2,0),"") ->  | G150: 0 | H150: 0 | J150: 0
D151: =IFERROR(VLOOKUP($C151,Vendors!C:D,2,0),"") ->  | G151: 0 | H151: 0 | J151: 0
D152: =IFERROR(VLOOKUP($C152,Vendors!C:D,2,0),"") ->  | G152: 0 | H152: 0 | J152: 0
D153: =IFERROR(VLOOKUP($C153,Vendors!C:D,2,0),"") ->  | G153: 0 | H153: 0 | J153: 0
D154: =IFERROR(VLOOKUP($C154,Vendors!C:D,2,0),"") ->  | G154: 0 | H154: 0 | J154: 0
D155: =IFERROR(VLOOKUP($C155,Vendors!C:D,2,0),"") ->  | G155: 0 | H155: 0 | J155: 0
D156: =IFERROR(VLOOKUP($C156,Vendors!C:D,2,0),"") ->  | G156: 0 | H156: 0 | J156: 0
D157: =IFERROR(VLOOKUP($C157,Vendors!C:D,2,0),"") ->  | G157: 0 | H157: 0 | J157: 0
D158: =IFERROR(VLOOKUP($C158,Vendors!C:D,2,0),"") ->  | G158: 0 | H158: 0 | J158: 0
D159: =IFERROR(VLOOKUP($C159,Vendors!C:D,2,0),"") ->  | G159: 0 | H159: 0 | J159: 0
D160: =IFERROR(VLOOKUP($C160,Vendors!C:D,2,0),"") ->  | G160: 0 | H160: 0 | J160: 0
D161: =IFERROR(VLOOKUP($C161,Vendors!C:D,2,0),"") ->  | G161: 0 | H161: 0 | J161: 0
D162: =IFERROR(VLOOKUP($C162,Vendors!C:D,2,0),"") ->  | G162: 0 | H162: 0 | J162: 0
D163: =IFERROR(VLOOKUP($C163,Vendors!C:D,2,0),"") ->  | G163: 0 | H163: 0 | J163: 0
D164: =IFERROR(VLOOKUP($C164,Vendors!C:D,2,0),"") ->  | G164: 0 | H164: 0 | J164: 0
D165: =IFERROR(VLOOKUP($C165,Vendors!C:D,2,0),"") ->  | G165: 0 | H165: 0 | J165: 0
D166: =IFERROR(VLOOKUP($C166,Vendors!C:D,2,0),"") ->  | G166: 0 | H166: 0 | J166: 0
D167: =IFERROR(VLOOKUP($C167,Vendors!C:D,2,0),"") ->  | G167: 0 | H167: 0 | J167: 0
D168: =IFERROR(VLOOKUP($C168,Vendors!C:D,2,0),"") ->  | G168: 0 | H168: 0 | J168: 0
D169: =IFERROR(VLOOKUP($C169,Vendors!C:D,2,0),"") ->  | G169: 0 | H169: 0 | J169: 0
D170: =IFERROR(VLOOKUP($C170,Vendors!C:D,2,0),"") ->  | G170: 0 | H170: 0 | J170: 0
D171: =IFERROR(VLOOKUP($C171,Vendors!C:D,2,0),"") ->  | G171: 0 | H171: 0 | J171: 0
D172: =IFERROR(VLOOKUP($C172,Vendors!C:D,2,0),"") ->  | G172: 0 | H172: 0 | J172: 0
D173: =IFERROR(VLOOKUP($C173,Vendors!C:D,2,0),"") ->  | G173: 0 | H173: 0 | J173: 0
D174: =IFERROR(VLOOKUP($C174,Vendors!C:D,2,0),"") ->  | G174: 0 | H174: 0 | J174: =H174-I174 -> 0
A175: إجمالى | E175: سلع محلية | F175: =SUMIF(E11:E174,E175,F11:F174) -> 0 | G175: =F175*5% -> 0 | H175: =F175+G175 -> 0 | I175: =SUMIF(E11:E174,E175,I11:I174) -> 0 | J175: =H175-I175 -> 0
E176: سلع محلية | F176: 1500 | G176: 75 | H176: =F176+G176 -> 1575 | I176: 25 | J176: =H176-I176 -> 1550
E177: سلع مستوردة | F177: =SUMIF(E13:E176,E177,F13:F176) -> 0 | G177: 0 | H177: 0 | I177: =SUMIF(E13:E176,E177,I13:I176) -> 0 | J177: 0
E178: خدمات مستوردة | F178: 0 | G178: 0 | H178: 0 | I178: 0 | J178: 0
E179: الات ومعدات محلية | F179: 0 | G179: 0 | H179: 0 | I179: 0 | J179: 0
E180: الات ومعدات مستوردة | F180: 0 | G180: 0 | H180: 0 | I180: 0 | J180: 0

Sheet Purchase(5)
C1: =#REF! -> 
C4: رقم التسجيل الضريبي | D4: =#REF! -> 
C6: العنوان | D6: =#REF! -> 
A8: عدد فواتير المشتريات | B8: =COUNT($A$11:$A$500) -> 1 | D8: تحليل مشتريات | F8: مايو | G8: =#REF! -> 
A10: التاريخ | B10: رقم الفاتورة | C10: المورد | D10: الرقم الضريبي | E10: نوع العملية | F10: قيمة المشتريات | G10: ض . ق . م | H10: اجمالى | I10: خصم من المنبع | J10: الصافى
D11: =IFERROR(VLOOKUP($C11,Vendors!C:D,2,0),"") ->  | G11: =IF(E11="الات ومعدات محلية",F11*5%,IF(E11="الات ومعدات مستوردة",F11*5%,IF(E11="",F11*0,F11*5%))) -> 0 | H11: =F11+G11 -> 0 | J11: =H11-I11 -> 0
A12: 2018-02-06 | B12: fghfgh | C12: شركة الضمان للتجارة والتوكيلات | D12: =IFERROR(VLOOKUP($C12,Vendors!C:D,2,0),"") ->  | E12: سلع محلية | F12: 1500 | G12: 75 | H12: 1575 | J12: 1575
D13: =IFERROR(VLOOKUP($C13,Vendors!C:D,2,0),"") ->  | G13: 0 | H13: 0 | J13: 0
D14: =IFERROR(VLOOKUP($C14,Vendors!C:D,2,0),"") ->  | G14: 0 | H14: 0 | J14: 0
D15: =IFERROR(VLOOKUP($C15,Vendors!C:D,2,0),"") ->  | G15: 0 | H15: 0 | J15: 0
D16: =IFERROR(VLOOKUP($C16,Vendors!C:D,2,0),"") ->  | G16: 0 | H16: 0 | J16: 0
D17: =IFERROR(VLOOKUP($C17,Vendors!C:D,2,0),"") ->  | G17: 0 | H17: 0 | J17: 0
D18: =IFERROR(VLOOKUP($C18,Vendors!C:D,2,0),"") ->  | G18: 0 | H18: 0 | J18: 0
D19: =IFERROR(VLOOKUP($C19,Vendors!C:D,2,0),"") ->  | G19: 0 | H19: 0 | J19: 0
D20: =IFERROR(VLOOKUP($C20,Vendors!C:D,2,0),"") ->  | G20: 0 | H20: 0 | J20: 0
D21: =IFERROR(VLOOKUP($C21,Vendors!C:D,2,0),"") ->  | G21: 0 | H21: 0 | J21: 0
D22: =IFERROR(VLOOKUP($C22,Vendors!C:D,2,0),"") ->  | G22: 0 | H22: 0 | J22: 0
D23: =IFERROR(VLOOKUP($C23,Vendors!C:D,2,0),"") ->  | G23: 0 | H23: 0 | J23: 0
D24: =IFERROR(VLOOKUP($C24,Vendors!C:D,2,0),"") ->  | G24: 0 | H24: 0 | J24: 0
D25: =IFERROR(VLOOKUP($C25,Vendors!C:D,2,0),"") ->  | G25: 0 | H25: 0 | J25: 0
D26: =IFERROR(VLOOKUP($C26,Vendors!C:D,2,0),"") ->  | G26: 0 | H26: 0 | J26: 0
D27: =IFERROR(VLOOKUP($C27,Vendors!C:D,2,0),"") ->  | G27: 0 | H27: 0 | J27: 0
D28: =IFERROR(VLOOKUP($C28,Vendors!C:D,2,0),"") ->  | G28: 0 | H28: 0 | J28: 0
D29: =IFERROR(VLOOKUP($C29,Vendors!C:D,2,0),"") ->  | G29: 0 | H29: 0 | J29: 0
D30: =IFERROR(VLOOKUP($C30,Vendors!C:D,2,0),"") ->  | G30: 0 | H30: 0 | J30: 0
D31: =IFERROR(VLOOKUP($C31,Vendors!C:D,2,0),"") ->  | G31: 0 | H31: 0 | J31: 0
D32: =IFERROR(VLOOKUP($C32,Vendors!C:D,2,0),"") ->  | G32: 0 | H32: 0 | J32: 0
D33: =IFERROR(VLOOKUP($C33,Vendors!C:D,2,0),"") ->  | G33: 0 | H33: 0 | J33: 0
D34: =IFERROR(VLOOKUP($C34,Vendors!C:D,2,0),"") ->  | G34: 0 | H34: 0 | J34: 0
D35: =IFERROR(VLOOKUP($C35,Vendors!C:D,2,0),"") ->  | G35: 0 | H35: 0 | J35: 0
D36: =IFERROR(VLOOKUP($C36,Vendors!C:D,2,0),"") ->  | G36: 0 | H36: 0 | J36: 0
D37: =IFERROR(VLOOKUP($C37,Vendors!C:D,2,0),"") ->  | G37: 0 | H37: 0 | J37: 0
D38: =IFERROR(VLOOKUP($C38,Vendors!C:D,2,0),"") ->  | G38: 0 | H38: 0 | J38: 0
D39: =IFERROR(VLOOKUP($C39,Vendors!C:D,2,0),"") ->  | G39: 0 | H39: 0 | J39: 0
D40: =IFERROR(VLOOKUP($C40,Vendors!C:D,2,0),"") ->  | G40: 0 | H40: 0 | J40: 0
D41: =IFERROR(VLOOKUP($C41,Vendors!C:D,2,0),"") ->  | G41: 0 | H41: 0 | J41: 0
D42: =IFERROR(VLOOKUP($C42,Vendors!C:D,2,0),"") ->  | G42: 0 | H42: 0 | J42: 0
D43: =IFERROR(VLOOKUP($C43,Vendors!C:D,2,0),"") ->  | G43: 0 | H43: 0 | J43: 0
D44: =IFERROR(VLOOKUP($C44,Vendors!C:D,2,0),"") ->  | G44: 0 | H44: 0 | J44: 0
D45: =IFERROR(VLOOKUP($C45,Vendors!C:D,2,0),"") ->  | G45: 0 | H45: 0 | J45: 0
D46: =IFERROR(VLOOKUP($C46,Vendors!C:D,2,0),"") ->  | G46: 0 | H46: 0 | J46: 0
D47: =IFERROR(VLOOKUP($C47,Vendors!C:D,2,0),"") ->  | G47: 0 | H47: 0 | J47: 0
D48: =IFERROR(VLOOKUP($C48,Vendors!C:D,2,0),"") ->  | G48: 0 | H48: 0 | J48: 0
D49: =IFERROR(VLOOKUP($C49,Vendors!C:D,2,0),"") ->  | G49: 0 | H49: 0 | J49: 0
D50: =IFERROR(VLOOKUP($C50,Vendors!C:D,2,0),"") ->  | G50: 0 | H50: 0 | J50: 0
D51: =IFERROR(VLOOKUP($C51,Vendors!C:D,2,0),"") ->  | G51: 0 | H51: 0 | J51: 0
D52: =IFERROR(VLOOKUP($C52,Vendors!C:D,2,0),"") ->  | G52: 0 | H52: 0 | J52: 0
D53: =IFERROR(VLOOKUP($C53,Vendors!C:D,2,0),"") ->  | G53: 0 | H53: 0 | J53: 0
D54: =IFERROR(VLOOKUP($C54,Vendors!C:D,2,0),"") ->  | G54: 0 | H54: 0 | J54: 0
D55: =IFERROR(VLOOKUP($C55,Vendors!C:D,2,0),"") ->  | G55: 0 | H55: 0 | J55: 0
D56: =IFERROR(VLOOKUP($C56,Vendors!C:D,2,0),"") ->  | G56: 0 | H56: 0 | J56: 0
D57: =IFERROR(VLOOKUP($C57,Vendors!C:D,2,0),"") ->  | G57: 0 | H57: 0 | J57: 0
D58: =IFERROR(VLOOKUP($C58,Vendors!C:D,2,0),"") ->  | G58: 0 | H58: 0 | J58: 0
D59: =IFERROR(VLOOKUP($C59,Vendors!C:D,2,0),"") ->  | G59: 0 | H59: 0 | J59: 0
D60: =IFERROR(VLOOKUP($C60,Vendors!C:D,2,0),"") ->  | G60: 0 | H60: 0 | J60: 0
D61: =IFERROR(VLOOKUP($C61,Vendors!C:D,2,0),"") ->  | G61: 0 | H61: 0 | J61: 0
D62: =IFERROR(VLOOKUP($C62,Vendors!C:D,2,0),"") ->  | G62: 0 | H62: 0 | J62: 0
D63: =IFERROR(VLOOKUP($C63,Vendors!C:D,2,0),"") ->  | G63: 0 | H63: 0 | J63: 0
D64: =IFERROR(VLOOKUP($C64,Vendors!C:D,2,0),"") ->  | G64: 0 | H64: 0 | J64: 0
D65: =IFERROR(VLOOKUP($C65,Vendors!C:D,2,0),"") ->  | G65: 0 | H65: 0 | J65: 0
D66: =IFERROR(VLOOKUP($C66,Vendors!C:D,2,0),"") ->  | G66: 0 | H66: 0 | J66: 0
D67: =IFERROR(VLOOKUP($C67,Vendors!C:D,2,0),"") ->  | G67: 0 | H67: 0 | J67: 0
D68: =IFERROR(VLOOKUP($C68,Vendors!C:D,2,0),"") ->  | G68: 0 | H68: 0 | J68: 0
D69: =IFERROR(VLOOKUP($C69,Vendors!C:D,2,0),"") ->  | G69: 0 | H69: 0 | J69: 0
D70: =IFERROR(VLOOKUP($C70,Vendors!C:D,2,0),"") ->  | G70: 0 | H70: 0 | J70: 0
D71: =IFERROR(VLOOKUP($C71,Vendors!C:D,2,0),"") ->  | G71: 0 | H71: 0 | J71: 0
D72: =IFERROR(VLOOKUP($C72,Vendors!C:D,2,0),"") ->  | G72: 0 | H72: 0 | J72: 0
D73: =IFERROR(VLOOKUP($C73,Vendors!C:D,2,0),"") ->  | G73: 0 | H73: 0 | J73: 0
D74: =IFERROR(VLOOKUP($C74,Vendors!C:D,2,0),"") ->  | G74: 0 | H74: 0 | J74: 0
D75: =IFERROR(VLOOKUP($C75,Vendors!C:D,2,0),"") ->  | G75: =IF(E75="الات ومعدات محلية",F75*5%,IF(E75="الات ومعدات مستوردة",F75*5%,IF(E75="",F75*0,F75*5%))) -> 0 | H75: =F75+G75 -> 0 | J75: =H75-I75 -> 0
D76: =IFERROR(VLOOKUP($C76,Vendors!C:D,2,0),"") ->  | G76: 0 | H76: 0 | J76: 0
D77: =IFERROR(VLOOKUP($C77,Vendors!C:D,2,0),"") ->  | G77: 0 | H77: 0 | J77: 0
D78: =IFERROR(VLOOKUP($C78,Vendors!C:D,2,0),"") ->  | G78: 0 | H78: 0 | J78: 0
D79: =IFERROR(VLOOKUP($C79,Vendors!C:D,2,0),"") ->  | G79: 0 | H79: 0 | J79: 0
D80: =IFERROR(VLOOKUP($C80,Vendors!C:D,2,0),"") ->  | G80: 0 | H80: 0 | J80: 0
D81: =IFERROR(VLOOKUP($C81,Vendors!C:D,2,0),"") ->  | G81: 0 | H81: 0 | J81: 0
D82: =IFERROR(VLOOKUP($C82,Vendors!C:D,2,0),"") ->  | G82: 0 | H82: 0 | J82: 0
D83: =IFERROR(VLOOKUP($C83,Vendors!C:D,2,0),"") ->  | G83: 0 | H83: 0 | J83: 0
D84: =IFERROR(VLOOKUP($C84,Vendors!C:D,2,0),"") ->  | G84: 0 | H84: 0 | J84: 0
D85: =IFERROR(VLOOKUP($C85,Vendors!C:D,2,0),"") ->  | G85: 0 | H85: 0 | J85: 0
D86: =IFERROR(VLOOKUP($C86,Vendors!C:D,2,0),"") ->  | G86: 0 | H86: 0 | J86: 0
D87: =IFERROR(VLOOKUP($C87,Vendors!C:D,2,0),"") ->  | G87: 0 | H87: 0 | J87: 0
D88: =IFERROR(VLOOKUP($C88,Vendors!C:D,2,0),"") ->  | G88: 0 | H88: 0 | J88: 0
D89: =IFERROR(VLOOKUP($C89,Vendors!C:D,2,0),"") ->  | G89: 0 | H89: 0 | J89: 0
D90: =IFERROR(VLOOKUP($C90,Vendors!C:D,2,0),"") ->  | G90: 0 | H90: 0 | J90: 0
D91: =IFERROR(VLOOKUP($C91,Vendors!C:D,2,0),"") ->  | G91: 0 | H91: 0 | J91: 0
D92: =IFERROR(VLOOKUP($C92,Vendors!C:D,2,0),"") ->  | G92: 0 | H92: 0 | J92: 0
D93: =IFERROR(VLOOKUP($C93,Vendors!C:D,2,0),"") ->  | G93: 0 | H93: 0 | J93: 0
D94: =IFERROR(VLOOKUP($C94,Vendors!C:D,2,0),"") ->  | G94: 0 | H94: 0 | J94: 0
D95: =IFERROR(VLOOKUP($C95,Vendors!C:D,2,0),"") ->  | G95: 0 | H95: 0 | J95: 0
D96: =IFERROR(VLOOKUP($C96,Vendors!C:D,2,0),"") ->  | G96: 0 | H96: 0 | J96: 0
D97: =IFERROR(VLOOKUP($C97,Vendors!C:D,2,0),"") ->  | G97: 0 | H97: 0 | J97: 0
D98: =IFERROR(VLOOKUP($C98,Vendors!C:D,2,0),"") ->  | G98: 0 | H98: 0 | J98: 0
D99: =IFERROR(VLOOKUP($C99,Vendors!C:D,2,0),"") ->  | G99: 0 | H99: 0 | J99: 0
D100: =IFERROR(VLOOKUP($C100,Vendors!C:D,2,0),"") ->  | G100: 0 | H100: 0 | J100: 0
D101: =IFERROR(VLOOKUP($C101,Vendors!C:D,2,0),"") ->  | G101: 0 | H101: 0 | J101: 0
D102: =IFERROR(VLOOKUP($C102,Vendors!C:D,2,0),"") ->  | G102: 0 | H102: 0 | J102: 0
D103: =IFERROR(VLOOKUP($C103,Vendors!C:D,2,0),"") ->  | G103: 0 | H103: 0 | J103: 0
D104: =IFERROR(VLOOKUP($C104,Vendors!C:D,2,0),"") ->  | G104: 0 | H104: 0 | J104: 0
D105: =IFERROR(VLOOKUP($C105,Vendors!C:D,2,0),"") ->  | G105: 0 | H105: 0 | J105: 0
D106: =IFERROR(VLOOKUP($C106,Vendors!C:D,2,0),"") ->  | G106: 0 | H106: 0 | J106: 0
D107: =IFERROR(VLOOKUP($C107,Vendors!C:D,2,0),"") ->  | G107: 0 | H107: 0 | J107: 0
D108: =IFERROR(VLOOKUP($C108,Vendors!C:D,2,0),"") ->  | G108: 0 | H108: 0 | J108: 0
D109: =IFERROR(VLOOKUP($C109,Vendors!C:D,2,0),"") ->  | G109: 0 | H109: 0 | J109: 0
D110: =IFERROR(VLOOKUP($C110,Vendors!C:D,2,0),"") ->  | G110: 0 | H110: 0 | J110: 0
D111: =IFERROR(VLOOKUP($C111,Vendors!C:D,2,0),"") ->  | G111: 0 | H111: 0 | J111: 0
D112: =IFERROR(VLOOKUP($C112,Vendors!C:D,2,0),"") ->  | G112: 0 | H112: 0 | J112: 0
D113: =IFERROR(VLOOKUP($C113,Vendors!C:D,2,0),"") ->  | G113: 0 | H113: 0 | J113: 0
D114: =IFERROR(VLOOKUP($C114,Vendors!C:D,2,0),"") ->  | G114: 0 | H114: 0 | J114: 0
D115: =IFERROR(VLOOKUP($C115,Vendors!C:D,2,0),"") ->  | G115: 0 | H115: 0 | J115: 0
D116: =IFERROR(VLOOKUP($C116,Vendors!C:D,2,0),"") ->  | G116: 0 | H116: 0 | J116: 0
D117: =IFERROR(VLOOKUP($C117,Vendors!C:D,2,0),"") ->  | G117: 0 | H117: 0 | J117: 0
D118: =IFERROR(VLOOKUP($C118,Vendors!C:D,2,0),"") ->  | G118: 0 | H118: 0 | J118: 0
D119: =IFERROR(VLOOKUP($C119,Vendors!C:D,2,0),"") ->  | G119: 0 | H119: 0 | J119: 0
D120: =IFERROR(VLOOKUP($C120,Vendors!C:D,2,0),"") ->  | G120: 0 | H120: 0 | J120: 0
D121: =IFERROR(VLOOKUP($C121,Vendors!C:D,2,0),"") ->  | G121: 0 | H121: 0 | J121: 0
D122: =IFERROR(VLOOKUP($C122,Vendors!C:D,2,0),"") ->  | G122: 0 | H122: 0 | J122: 0
D123: =IFERROR(VLOOKUP($C123,Vendors!C:D,2,0),"") ->  | G123: 0 | H123: 0 | J123: 0
D124: =IFERROR(VLOOKUP($C124,Vendors!C:D,2,0),"") ->  | G124: 0 | H124: 0 | J124: 0
D125: =IFERROR(VLOOKUP($C125,Vendors!C:D,2,0),"") ->  | G125: 0 | H125: 0 | J125: 0
D126: =IFERROR(VLOOKUP($C126,Vendors!C:D,2,0),"") ->  | G126: 0 | H126: 0 | J126: 0
D127: =IFERROR(VLOOKUP($C127,Vendors!C:D,2,0),"") ->  | G127: 0 | H127: 0 | J127: 0
D128: =IFERROR(VLOOKUP($C128,Vendors!C:D,2,0),"") ->  | G128: 0 | H128: 0 | J128: 0
D129: =IFERROR(VLOOKUP($C129,Vendors!C:D,2,0),"") ->  | G129: 0 | H129: 0 | J129: 0
D130: =IFERROR(VLOOKUP($C130,Vendors!C:D,2,0),"") ->  | G130: 0 | H130: 0 | J130: 0
D131: =IFERROR(VLOOKUP($C131,Vendors!C:D,2,0),"") ->  | G131: 0 | H131: 0 | J131: 0
D132: =IFERROR(VLOOKUP($C132,Vendors!C:D,2,0),"") ->  | G132: 0 | H132: 0 | J132: 0
D133: =IFERROR(VLOOKUP($C133,Vendors!C:D,2,0),"") ->  | G133: 0 | H133: 0 | J133: 0
D134: =IFERROR(VLOOKUP($C134,Vendors!C:D,2,0),"") ->  | G134: 0 | H134: 0 | J134: 0
D135: =IFERROR(VLOOKUP($C135,Vendors!C:D,2,0),"") ->  | G135: 0 | H135: 0 | J135: 0
D136: =IFERROR(VLOOKUP($C136,Vendors!C:D,2,0),"") ->  | G136: 0 | H136: 0 | J136: 0
D137: =IFERROR(VLOOKUP($C137,Vendors!C:D,2,0),"") ->  | G137: 0 | H137: 0 | J137: 0
D138: =IFERROR(VLOOKUP($C138,Vendors!C:D,2,0),"") ->  | G138: 0 | H138: 0 | J138: 0
D139: =IFERROR(VLOOKUP($C139,Vendors!C:D,2,0),"") ->  | G139: =IF(E139="الات ومعدات محلية",F139*5%,IF(E139="الات ومعدات مستوردة",F139*5%,IF(E139="",F139*0,F139*5%))) -> 0 | H139: =F139+G139 -> 0 | J139: =H139-I139 -> 0
D140: =IFERROR(VLOOKUP($C140,Vendors!C:D,2,0),"") ->  | G140: 0 | H140: 0 | J140: 0
D141: =IFERROR(VLOOKUP($C141,Vendors!C:D,2,0),"") ->  | G141: 0 | H141: 0 | J141: 0
D142: =IFERROR(VLOOKUP($C142,Vendors!C:D,2,0),"") ->  | G142: 0 | H142: 0 | J142: 0
D143: =IFERROR(VLOOKUP($C143,Vendors!C:D,2,0),"") ->  | G143: 0 | H143: 0 | J143: 0
D144: =IFERROR(VLOOKUP($C144,Vendors!C:D,2,0),"") ->  | G144: 0 | H144: 0 | J144: 0
D145: =IFERROR(VLOOKUP($C145,Vendors!C:D,2,0),"") ->  | G145: 0 | H145: 0 | J145: 0
D146: =IFERROR(VLOOKUP($C146,Vendors!C:D,2,0),"") ->  | G146: 0 | H146: 0 | J146: 0
D147: =IFERROR(VLOOKUP($C147,Vendors!C:D,2,0),"") ->  | G147: 0 | H147: 0 | J147: 0
D148: =IFERROR(VLOOKUP($C148,Vendors!C:D,2,0),"") ->  | G148: 0 | H148: 0 | J148: 0
D149: =IFERROR(VLOOKUP($C149,Vendors!C:D,2,0),"") ->  | G149: 0 | H149: 0 | J149: 0
D150: =IFERROR(VLOOKUP($C150,Vendors!C:D,2,0),"") ->  | G150: 0 | H150: 0 | J150: 0
D151: =IFERROR(VLOOKUP($C151,Vendors!C:D,2,0),"") ->  | G151: 0 | H151: 0 | J151: 0
D152: =IFERROR(VLOOKUP($C152,Vendors!C:D,2,0),"") ->  | G152: 0 | H152: 0 | J152: 0
D153: =IFERROR(VLOOKUP($C153,Vendors!C:D,2,0),"") ->  | G153: 0 | H153: 0 | J153: 0
D154: =IFERROR(VLOOKUP($C154,Vendors!C:D,2,0),"") ->  | G154: 0 | H154: 0 | J154: 0
D155: =IFERROR(VLOOKUP($C155,Vendors!C:D,2,0),"") ->  | G155: 0 | H155: 0 | J155: 0
D156: =IFERROR(VLOOKUP($C156,Vendors!C:D,2,0),"") ->  | G156: 0 | H156: 0 | J156: 0
D157: =IFERROR(VLOOKUP($C157,Vendors!C:D,2,0),"") ->  | G157: 0 | H157: 0 | J157: 0
D158: =IFERROR(VLOOKUP($C158,Vendors!C:D,2,0),"") ->  | G158: 0 | H158: 0 | J158: 0
D159: =IFERROR(VLOOKUP($C159,Vendors!C:D,2,0),"") ->  | G159: 0 | H159: 0 | J159: 0
D160: =IFERROR(VLOOKUP($C160,Vendors!C:D,2,0),"") ->  | G160: 0 | H160: 0 | J160: 0
D161: =IFERROR(VLOOKUP($C161,Vendors!C:D,2,0),"") ->  | G161: 0 | H161: 0 | J161: 0
D162: =IFERROR(VLOOKUP($C162,Vendors!C:D,2,0),"") ->  | G162: 0 | H162: 0 | J162: 0
D163: =IFERROR(VLOOKUP($C163,Vendors!C:D,2,0),"") ->  | G163: 0 | H163: 0 | J163: 0
D164: =IFERROR(VLOOKUP($C164,Vendors!C:D,2,0),"") ->  | G164: 0 | H164: 0 | J164: 0
D165: =IFERROR(VLOOKUP($C165,Vendors!C:D,2,0),"") ->  | G165: 0 | H165: 0 | J165: 0
D166: =IFERROR(VLOOKUP($C166,Vendors!C:D,2,0),"") ->  | G166: 0 | H166: 0 | J166: 0
D167: =IFERROR(VLOOKUP($C167,Vendors!C:D,2,0),"") ->  | G167: 0 | H167: 0 | J167: 0
D168: =IFERROR(VLOOKUP($C168,Vendors!C:D,2,0),"") ->  | G168: 0 | H168: 0 | J168: 0
D169: =IFERROR(VLOOKUP($C169,Vendors!C:D,2,0),"") ->  | G169: 0 | H169: 0 | J169: 0
D170: =IFERROR(VLOOKUP($C170,Vendors!C:D,2,0),"") ->  | G170: 0 | H170: 0 | J170: 0
D171: =IFERROR(VLOOKUP($C171,Vendors!C:D,2,0),"") ->  | G171: 0 | H171: 0 | J171: 0
D172: =IFERROR(VLOOKUP($C172,Vendors!C:D,2,0),"") ->  | G172: 0 | H172: 0 | J172: 0
D173: =IFERROR(VLOOKUP($C173,Vendors!C:D,2,0),"") ->  | G173: 0 | H173: 0 | J173: 0
D174: =IFERROR(VLOOKUP($C174,Vendors!C:D,2,0),"") ->  | G174: 0 | H174: 0 | J174: =H174-I174 -> 0
A175: إجمالى | E175: سلع محلية | F175: =SUMIF(E11:E174,E175,F11:F174) -> 1500 | G175: =F175*5% -> 75 | H175: =F175+G175 -> 1575 | I175: =SUMIF(E11:E174,E175,I11:I174) -> 0 | J175: =H175-I175 -> 1575
E176: سلع محلية | F176: 452452 | G176: 22622.6 | H176: =F176+G176 -> 475074.6 | I176: 452452 | J176: =H176-I176 -> 22622.6
E177: سلع مستوردة | F177: =SUMIF(E13:E176,E177,F13:F176) -> 0 | G177: 0 | H177: 0 | I177: =SUMIF(E13:E176,E177,I13:I176) -> 0 | J177: 0
E178: خدمات مستوردة | F178: 0 | G178: 0 | H178: 0 | I178: 0 | J178: 0
E179: الات ومعدات محلية | F179: 0 | G179: 0 | H179: 0 | I179: 0 | J179: 0
E180: الات ومعدات مستوردة | F180: 0 | G180: 0 | H180: 0 | I180: 0 | J180: 0

Sheet Vendors
C1: أسم المورد | D1: TRN
B2: 1 | C2: teka | D2: 100300600500400
B3: =IF(C3>=1,B2+1,"") -> 2 | C3: AA
B67: =IF(C67>=1,B66+1,"") -> 
B131: =IF(C131>=1,B130+1,"") -> 
B195: =IF(C195>=1,B194+1,"") -> 
B259: =IF(C259>=1,B258+1,"") -> 
B323: =IF(C323>=1,B322+1,"") -> 
B387: =IF(C387>=1,B386+1,"") -> 
B451: =IF(C451>=1,B450+1,"") -> 
B515: =IF(C515>=1,B514+1,"") -> 
B579: =IF(C579>=1,B578+1,"") -> 
B643: =IF(C643>=1,B642+1,"") -> 
B707: =IF(C707>=1,B706+1,"") -> 
B771: =IF(C771>=1,B770+1,"") -> 
B835: =IF(C835>=1,B834+1,"") -> 
B899: =IF(C899>=1,B898+1,"") -> 
B963: =IF(C963>=1,B962+1,"") -> 
B1001: 542 | C1001: teka | D1001: 100300600500400 | E1001: سلع محلية | F1001: 52
B1002: 52 | C1002: teka | D1002: 100300600500400 | E1002: سلع محلية | F1002: 52
